Body Name,Body,Service Division Label,Service Division Code,Organisational Unit,Expenditure Category,Expenditure Code,CIPFA detailed expediture type,CIPFA detailed expediture code,Narrative,Date,Transaction number,Net Amount,Capital and Revenue,Supplier Name,Supplier ID,,
Chorley Borough Council,http://statistics.data.gov.uk/id/local-authority/30UE,Unapportionable Central OHeads,1009,Customer & Digital,Bank Charges,40151,Miscellaneous Expenses,5034,add account fee,12/06/2020,0146876,10.00,Revenue,Allpay Net Ltd,17242,,
Chorley Borough Council,http://statistics.data.gov.uk/id/local-authority/30UE,Unapportionable Central OHeads,1009,Customer & Digital,Bank Charges,40151,Miscellaneous Expenses,5034,post off,12/06/2020,0146876,611.59,Revenue,Allpay Net Ltd,17242,,
Chorley Borough Council,http://statistics.data.gov.uk/id/local-authority/30UE,Unapportionable Central OHeads,1009,Customer & Digital,Bank Charges,40151,Miscellaneous Expenses,5034,paypoint,12/06/2020,0146876,228.40,Revenue,Allpay Net Ltd,17242,,
Chorley Borough Council,http://statistics.data.gov.uk/id/local-authority/30UE,Unapportionable Central OHeads,1009,Customer & Digital,Bank Charges,40151,Miscellaneous Expenses,5034,webconn,12/06/2020,0146876,46.00,Revenue,Allpay Net Ltd,17242,,
Chorley Borough Council,http://statistics.data.gov.uk/id/local-authority/30UE,Service Management & Support,1009,Customer & Digital,Supplies-Grounds Maintenance,40025,"Equipment, Furniture & Materia",5023,7 kg Euroflor Rainbow (annual) mix. Delivered to Bengal St depot,03/06/2020,0146735,"1,274.00",Revenue,Allturf Limited,74888,,
Chorley Borough Council,http://statistics.data.gov.uk/id/local-authority/30UE,Corporate Management,1008,Policy & Governance,Car Leasing Payment,14100,Direct Employee Expenses,5001,VIN REDACTED,10/06/2020,0146994,367.35,Revenue,Alphabet (Uk) Fleet Management Ltd,16651,,
Chorley Borough Council,http://statistics.data.gov.uk/id/local-authority/30UE,Corporate Management,1008,Policy & Governance,Car Leasing Payment,14100,Direct Employee Expenses,5001,vat,10/06/2020,0146994,32.55,Revenue,Alphabet (Uk) Fleet Management Ltd,16651,,
Chorley Borough Council,http://statistics.data.gov.uk/id/local-authority/30UE,Control Accounts,Control,Policy & Governance,Manual Control Account,00001,Balance Sheet,Balance,-vat,10/06/2020,0146994,-32.55,Revenue,Alphabet (Uk) Fleet Management Ltd,16651,,
Chorley Borough Council,http://statistics.data.gov.uk/id/local-authority/30UE,Corporate Management,1008,Chief Executive,Employee Related Insurance,18003,Indirect Employee Expenses,5002,duplicate credit owe back one,10/06/2020,0146842,"2,199.08",Revenue,Aon UK Limited Accounts Division,76559,,
Chorley Borough Council,http://statistics.data.gov.uk/id/local-authority/30UE,Corporate Management,1008,Chief Executive,Employee Related Insurance,18003,Indirect Employee Expenses,5002,Additional premium for Market Walks � Full extension Property added on insurance cover from the 16th September ,19/06/2020,0147177,"3,408.06",Revenue,Aon UK Limited Accounts Division,76559,,
Chorley Borough Council,http://statistics.data.gov.uk/id/local-authority/30UE,Corporate Management,1008,Chief Executive,Employee Related Insurance,18003,Indirect Employee Expenses,5002,Additional premium for TVS - Logistics House Property added on insurance cover from the 21st August 2019,19/06/2020,0147179,"8,376.12",Revenue,Aon UK Limited Accounts Division,76559,,
Chorley Borough Council,http://statistics.data.gov.uk/id/local-authority/30UE,Corporate Management,1008,Chief Executive,Employee Related Insurance,18003,Indirect Employee Expenses,5002,Additional premium for Market Walks � Full extension Property added on insurance cover from the 16th September ,19/06/2020,0147180,296.27,Revenue,Aon UK Limited Accounts Division,76559,,
Chorley Borough Council,http://statistics.data.gov.uk/id/local-authority/30UE,Corporate Management,1008,Chief Executive,Employee Related Insurance,18003,Indirect Employee Expenses,5002,Additional premium for TVS - Logistics House Property added on insurance cover from the 21st August 2019,19/06/2020,0147182,633.32,Revenue,Aon UK Limited Accounts Division,76559,,
Chorley Borough Council,http://statistics.data.gov.uk/id/local-authority/30UE,Corporate Management,1008,Chief Executive,Employee Related Insurance,18003,Indirect Employee Expenses,5002,Additional premium for Strawberry Fields � Chorley Digital Village Property added on insurance cover from the 7th May 2019,19/06/2020,0147183,"3,384.98",Revenue,Aon UK Limited Accounts Division,76559,,
Chorley Borough Council,http://statistics.data.gov.uk/id/local-authority/30UE,Control Accounts,Control,Policy & Governance,Manual Control Account,00001,Balance Sheet,Balance,Refund of duplicate Inv L01395601,03/06/2020,CRREF95,"3,249.22",Revenue,Arnold Clark Finance Ltd,20685,,
Chorley Borough Council,http://statistics.data.gov.uk/id/local-authority/30UE,Public Transport,1067,Customer & Digital,Bus Shelters -Maintenance,20062,Grounds Maintenance Costs,5013,"To repaint 3 x Cantilever bus shelters located along Great greens lane, Clayton-le-woods, Chorley",26/06/2020,0147346,"1,275.00",Revenue,Autocross Euroshel Ltd,77509,,
Chorley Borough Council,http://statistics.data.gov.uk/id/local-authority/30UE,Service Management & Support,1009,Customer & Digital,Vehicles and Plant Maintenance,30045,Direct Transport Costs,5016,1 x full set of regular blades for Wessex gang as quoted by NAME REDACTED,24/06/2020,0146991,251.64,Revenue,Balmers Garden Machinery,17075,,
Chorley Borough Council,http://statistics.data.gov.uk/id/local-authority/30UE,Capital,Capital,Early Intervention,Other Legal Fees,03020,Capital Expenditure,Capital,Football Foundation Grant to Chorley Council - Westway Fees for placing a restriction on the title. Interim Invoice.,24/06/2020,0147163,734.40,Capital,Bates Wells Solicitors,80471,,
Chorley Borough Council,http://statistics.data.gov.uk/id/local-authority/30UE,Control Accounts,Control,Policy & Governance,General Balances,00100,Balance Sheet,Balance,monthly deds from payroll,19/06/2020,0147227,291.00,Revenue,Blues And Twos Credit Union,80307,,
Chorley Borough Council,http://statistics.data.gov.uk/id/local-authority/30UE,Unapportionable Central OHeads,1009,Commercial Services,Planned Maintenance,20006,Repairs Maintenance & Alts,5005,Asbestos sampling tests - covered market,17/06/2020,0147036,"1,479.00",Revenue,Bradley Environmental Consultants Ltd,77154,,
Chorley Borough Council,http://statistics.data.gov.uk/id/local-authority/30UE,Control Accounts,Control,Policy & Governance,Manual Control Account,00001,Balance Sheet,Balance,Refund of historic overpayments for Unit 14 Chorley Industrial Estate,03/06/2020,CRREF93,"4,164.14",Revenue,British Gas Business,22242,,
Chorley Borough Council,http://statistics.data.gov.uk/id/local-authority/30UE,Unapportionable Central OHeads,1009,Commercial Services,General Repairs - Reactive,20004,Repairs Maintenance & Alts,5005,Blocked land drain works at Astley Park,12/06/2020,0147037,"2,183.00",Revenue,Bryan Lee Building Contractors Ltd,78160,,
Chorley Borough Council,http://statistics.data.gov.uk/id/local-authority/30UE,Central Support Services,1009,Customer & Digital,Telephones - Rentals,40083,Communication and Computing,5028,2 june 2020,10/06/2020,0146990,"3,204.68",Revenue,BT Redcare,21115,,
Chorley Borough Council,http://statistics.data.gov.uk/id/local-authority/30UE,Central Support Services,1009,Customer & Digital,Telephones - Rentals,40083,Communication and Computing,5028,,17/06/2020,0147125,"1,768.36",Revenue,BT Redcare,21115,,
Chorley Borough Council,http://statistics.data.gov.uk/id/local-authority/30UE,Capital,Capital,Policy & Governance,Other Contractor,03012,Capital Expenditure,Capital,4 days input on design of shop at Astley Hall coach house.,17/06/2020,0147097,"2,240.00",Capital,BWD Limited,78590,,
Chorley Borough Council,http://statistics.data.gov.uk/id/local-authority/30UE,Service Management & Support,1009,Customer & Digital,Supplies-Grounds Maintenance,40025,"Equipment, Furniture & Materia",5023,Bengal Street � Empty Interceptor  12 x 325.00 per visit,05/06/2020,0144651,325.00,Revenue,C J Lyon,16579,,
Chorley Borough Council,http://statistics.data.gov.uk/id/local-authority/30UE,Service Management & Support,1009,Customer & Digital,Supplies-Grounds Maintenance,40025,"Equipment, Furniture & Materia",5023,Bengal Street � Empty Interceptor  12 x 325.00 per visit,05/06/2020,0145755,325.00,Revenue,C J Lyon,16579,,
Chorley Borough Council,http://statistics.data.gov.uk/id/local-authority/30UE,Unapportionable Central OHeads,1009,Customer & Digital,Emergency Call Out System,40096,Communication and Computing,5028,Out of Hours call charges 19/20,10/06/2020,0146989,410.76,Revenue,CallCare Ltd,20257,,
Chorley Borough Council,http://statistics.data.gov.uk/id/local-authority/30UE,Unapportionable Central OHeads,1009,Customer & Digital,Emergency Call Out System,40096,Communication and Computing,5028,Out of Hours standing charge 19/20,10/06/2020,0146989,120.00,Revenue,CallCare Ltd,20257,,
Chorley Borough Council,http://statistics.data.gov.uk/id/local-authority/30UE,Housing Benefit Administration,1077,Customer & Digital,Computer Software-Additional,40102,Communication and Computing,5028,DWP LA Data sharing Programme: IT costs for work completed to 31st March 2020 as per correspondence dated 09.04.2020.,03/06/2020,0146770,"6,093.68",Revenue,Capita Business Services Ltd,17151,,
Chorley Borough Council,http://statistics.data.gov.uk/id/local-authority/30UE,Housing Benefit Administration,1077,Customer & Digital,Computer Software-Additional,40102,Communication and Computing,5028,Software changes HB for Covid 19 Policy,24/06/2020,0147264,"2,334.53",Revenue,Capita Business Services Ltd,17151,,
Chorley Borough Council,http://statistics.data.gov.uk/id/local-authority/30UE,Unapportionable Central OHeads,1009,Commercial Services,General Repairs - Reactive,20004,Repairs Maintenance & Alts,5005,Disinfecting of Primrose Gardens and Cotswold House,12/06/2020,0147023,"2,805.00",Revenue,Castus Solutions Limited,78812,,
Chorley Borough Council,http://statistics.data.gov.uk/id/local-authority/30UE,Business Support,1095,Commercial Services,Salting & Gritting,20059,Grounds Maintenance Costs,5013,"Per invoice 1508. Gritting to access road from Euxton Lane February 4, 6, 25 & 26 2020. 4 x 65.59",19/06/2020,0147015,430.20,Revenue,Chameleon Facilities Limited,78464,,
Chorley Borough Council,http://statistics.data.gov.uk/id/local-authority/30UE,Business Support,1095,Commercial Services,Salting & Gritting,20059,Grounds Maintenance Costs,5013,"Per invoice 1538. Gritting to SFDOP site February 4, 6, 25 & 26 2020. 4 x 149.51",19/06/2020,0147016,598.04,Revenue,Chameleon Facilities Limited,78464,,
Chorley Borough Council,http://statistics.data.gov.uk/id/local-authority/30UE,Business Support,1095,Commercial Services,Salting & Gritting,20059,Grounds Maintenance Costs,5013,"Per invoice 1505. Gritting to access road from Euxton Lane to SFDOP January 9, 17, 18 & 19 2020. 4 x 65.59",19/06/2020,0147017,262.36,Revenue,Chameleon Facilities Limited,78464,,
Chorley Borough Council,http://statistics.data.gov.uk/id/local-authority/30UE,Business Support,1095,Commercial Services,Salting & Gritting,20059,Grounds Maintenance Costs,5013,"Per invoice 1506. Gritting to SFDOP site January 9, 17, 18 & 19 2020. 4 x 149.51",19/06/2020,0147018,598.04,Revenue,Chameleon Facilities Limited,78464,,
Chorley Borough Council,http://statistics.data.gov.uk/id/local-authority/30UE,Business Support,1095,Commercial Services,Salting & Gritting,20059,Grounds Maintenance Costs,5013,"Per invoice 1509. Gritting to access road from Euxton Lane March 1, 3, 20 & 22 2020. 4 x 65.59",19/06/2020,0147019,262.36,Revenue,Chameleon Facilities Limited,78464,,
Chorley Borough Council,http://statistics.data.gov.uk/id/local-authority/30UE,Business Support,1095,Commercial Services,Salting & Gritting,20059,Grounds Maintenance Costs,5013,"Per invoice 1510. Gritting to SFDOP site, March 1, 3, 20 & 22 2020. 4 x 149.51",19/06/2020,0147020,598.04,Revenue,Chameleon Facilities Limited,78464,,
Chorley Borough Council,http://statistics.data.gov.uk/id/local-authority/30UE,Parking Services,1066,Customer & Digital,External Contractors,50008,Private Contractors,5042,Processing 074  01.04.2019-31.03.2020 Notice Processing Services Auto T/phone and Internet Payments Internet Evidence,10/06/2020,0146512,472.62,Revenue,Chipside Ltd,22063,,
Chorley Borough Council,http://statistics.data.gov.uk/id/local-authority/30UE,Corporate Management,1008,Customer & Digital,Taxi Testing & Vehicle Safety Report,40234,Services,5027,MOT,17/06/2020,0147039,"1,426.10",Revenue,Chorley Autocare Ltd,17110,,
Chorley Borough Council,http://statistics.data.gov.uk/id/local-authority/30UE,Corporate Management,1008,Customer & Digital,Taxi Testing & Vehicle Safety Report,40234,Services,5027,taxi test,17/06/2020,0147039,222.30,Revenue,Chorley Autocare Ltd,17110,,
Chorley Borough Council,http://statistics.data.gov.uk/id/local-authority/30UE,Unapportionable Central OHeads,1009,Policy & Governance,Processional Routes,40177,Miscellaneous Expenses,5034,Fee for playing at Remembrance Sunday  on 10th November 2019.,24/06/2020,0147067,400.00,Revenue,Chorley Pipe Band,21576,,
Chorley Borough Council,http://statistics.data.gov.uk/id/local-authority/30UE,Community Development,1097,Policy & Governance,Core Funding Grants,40133,Grants and Subscriptions,5031,Annual commission for the provision of a support service for vulnerable adults (women) in Chorley,03/06/2020,0146866,"6,250.00",Revenue,Chorley Womens Centre,17036,,
Chorley Borough Council,http://statistics.data.gov.uk/id/local-authority/30UE,Community Development,1097,Early Intervention,Core Funding Grants,40133,Grants and Subscriptions,5031,Additional funding for Outreach Project,17/06/2020,0147119,"20,000.00",Revenue,Chorley Youth Zone,77339,,
Chorley Borough Council,http://statistics.data.gov.uk/id/local-authority/30UE,Central Support Services,1009,Early Intervention,Children's Activities,40188,Miscellaneous Expenses,5034,Lancashire Breaktime respite care by Inspire Youth Zone February 2020 Term Time,17/06/2020,0147120,"1,041.18",Revenue,Chorley Youth Zone,77339,,
Chorley Borough Council,http://statistics.data.gov.uk/id/local-authority/30UE,Central Support Services,1009,Early Intervention,Children's Activities,40188,Miscellaneous Expenses,5034,Lancashire Breaktime respite care by Inspire Youth Zone February 2020 Half Term,17/06/2020,0147121,"1,294.44",Revenue,Chorley Youth Zone,77339,,
Chorley Borough Council,http://statistics.data.gov.uk/id/local-authority/30UE,Central Support Services,1009,Early Intervention,Children's Activities,40188,Miscellaneous Expenses,5034,Lancashire Breaktime Respite Care by Inspire Youth Zone December 2019 Term Time Total 1069.30,17/06/2020,0147122,"1,069.30",Revenue,Chorley Youth Zone,77339,,
Chorley Borough Council,http://statistics.data.gov.uk/id/local-authority/30UE,Central Support Services,1009,Early Intervention,Children's Activities,40188,Miscellaneous Expenses,5034,Lancashire Breaktime respire care by Inspire Youth Zone January 2020 Term Time,17/06/2020,0147123,"1,322.58",Revenue,Chorley Youth Zone,77339,,
Chorley Borough Council,http://statistics.data.gov.uk/id/local-authority/30UE,Homelessness,1075,Early Intervention,Computer Software-Maintenance,40107,Communication and Computing,5028,"Licence Support & Maint 1/07/2020 to 30/06/2021: Hosting, Support & Maint, SSL Security,Enhanced DR Service Fee (770.",17/06/2020,0147089,"5,193.88",Revenue,Civica UK Limited,17463,,
Chorley Borough Council,http://statistics.data.gov.uk/id/local-authority/30UE,Homelessness,1075,Early Intervention,Computer Software-Maintenance,40107,Communication and Computing,5028,"Licence Support & Maint 1/07/2020 to 20/06/2021:  Hosting Chorley Borough Council, Support & Maint, SSL Security on test site ",24/06/2020,0147090,"10,897.03",Revenue,Civica UK Limited,17463,,
Chorley Borough Council,http://statistics.data.gov.uk/id/local-authority/30UE,Homelessness,1075,Early Intervention,Computer Software-Maintenance,40107,Communication and Computing,5028,"Licence Support & Maint 1/07/2020 to 30/06/2021: Hosting for Community Housing, Support & Maint, SSL  Test Site for CCH ",17/06/2020,0147091,"5,193.88",Revenue,Civica UK Limited,17463,,
Chorley Borough Council,http://statistics.data.gov.uk/id/local-authority/30UE,Unapportionable Central OHeads,1009,Commercial Services,General Repairs - Reactive,20004,Repairs Maintenance & Alts,5005,Reactive blanket order,12/06/2020,0147026,251.00,Revenue,Classic Lifts Limited,20897,,
Chorley Borough Council,http://statistics.data.gov.uk/id/local-authority/30UE,Unapportionable Central OHeads,1009,Policy & Governance,First Aid Supplies,40031,"Equipment, Furniture & Materia",5023,HSEK02 - Eurekaplast HSE Compliant 1st Aid Kit,24/06/2020,0147068,239.25,Revenue,CMUK Visual Safety Ltd,22496,,
Chorley Borough Council,http://statistics.data.gov.uk/id/local-authority/30UE,Unapportionable Central OHeads,1009,Policy & Governance,First Aid Supplies,40031,"Equipment, Furniture & Materia",5023,EKBRACKET - Wall Bracket for 1st Aid Kit,24/06/2020,0147068,16.50,Revenue,CMUK Visual Safety Ltd,22496,,
Chorley Borough Council,http://statistics.data.gov.uk/id/local-authority/30UE,Unapportionable Central OHeads,1009,Policy & Governance,First Aid Supplies,40031,"Equipment, Furniture & Materia",5023,GHS01 - Green handled kit scissors,24/06/2020,0147068,24.75,Revenue,CMUK Visual Safety Ltd,22496,,
Chorley Borough Council,http://statistics.data.gov.uk/id/local-authority/30UE,Unapportionable Central OHeads,1009,Policy & Governance,First Aid Supplies,40031,"Equipment, Furniture & Materia",5023,FAS05 - Foil Blankets,24/06/2020,0147068,46.35,Revenue,CMUK Visual Safety Ltd,22496,,
Chorley Borough Council,http://statistics.data.gov.uk/id/local-authority/30UE,Unapportionable Central OHeads,1009,Policy & Governance,First Aid Supplies,40031,"Equipment, Furniture & Materia",5023,OFFER637 - Hygio Resusci Aid,24/06/2020,0147068,39.00,Revenue,CMUK Visual Safety Ltd,22496,,
Chorley Borough Council,http://statistics.data.gov.uk/id/local-authority/30UE,Unapportionable Central OHeads,1009,Policy & Governance,First Aid Supplies,40031,"Equipment, Furniture & Materia",5023,COMCPK20 - Compact Instant Ice Packs,24/06/2020,0147068,45.30,Revenue,CMUK Visual Safety Ltd,22496,,
Chorley Borough Council,http://statistics.data.gov.uk/id/local-authority/30UE,Unapportionable Central OHeads,1009,Policy & Governance,First Aid Supplies,40031,"Equipment, Furniture & Materia",5023,AQ0143-S - 1st Aid Self-Adhesive Sign,24/06/2020,0147068,45.60,Revenue,CMUK Visual Safety Ltd,22496,,
Chorley Borough Council,http://statistics.data.gov.uk/id/local-authority/30UE,Unapportionable Central OHeads,1009,Policy & Governance,First Aid Supplies,40031,"Equipment, Furniture & Materia",5023,GL53S - Economy Powder Free Blue Nitrile Gloves - Small,24/06/2020,0147068,11.95,Revenue,CMUK Visual Safety Ltd,22496,,
Chorley Borough Council,http://statistics.data.gov.uk/id/local-authority/30UE,Democratic Represent and  Mgnt,1007,Early Intervention,Supplies-Grounds Maintenance,40025,"Equipment, Furniture & Materia",5023,"Open Space enhancement at The Cedars and The Willows, Eaves Green to Spec agreed.",10/06/2020,0146321,"1,577.39",Revenue,Conservation Contracts North West,20520,,
Chorley Borough Council,http://statistics.data.gov.uk/id/local-authority/30UE,Democratic Represent and  Mgnt,1007,Early Intervention,Maintenance/Nature Reserves,20045,Grounds Maintenance Costs,5013,Cripplegate Ponds Feasibility Study Quotation ref: JE7117-20,17/06/2020,0147102,"2,016.60",Revenue,Conservation Contracts North West,20520,,
Chorley Borough Council,http://statistics.data.gov.uk/id/local-authority/30UE,Capital,Capital,Commercial Services,Main Contractor,03007,Capital Expenditure,Capital,CCTV installation works at various sites,05/06/2020,0146968,"2,174.25",Capital,Corlett Electrical Eng Co Ltd,16271,,
Chorley Borough Council,http://statistics.data.gov.uk/id/local-authority/30UE,Capital,Capital,Commercial Services,Main Contractor,03007,Capital Expenditure,Capital,CCTV installation works at various sites,05/06/2020,0146969,"1,754.91",Capital,Corlett Electrical Eng Co Ltd,16271,,
Chorley Borough Council,http://statistics.data.gov.uk/id/local-authority/30UE,Capital,Capital,Commercial Services,Main Contractor,03007,Capital Expenditure,Capital,CCTV installation works at various sites,05/06/2020,0146970,527.23,Capital,Corlett Electrical Eng Co Ltd,16271,,
Chorley Borough Council,http://statistics.data.gov.uk/id/local-authority/30UE,Homelessness,1075,Commercial Services,Gas,20014,Energy Costs,5006,apr.may,12/06/2020,0146936,644.81,Revenue,Corona Energy Retail 2 Ltd,67249,,
Chorley Borough Council,http://statistics.data.gov.uk/id/local-authority/30UE,Democratic Represent and  Mgnt,1007,Commercial Services,Gas,20014,Energy Costs,5006,,12/06/2020,0146941,811.60,Revenue,Corona Energy Retail 2 Ltd,67249,,
Chorley Borough Council,http://statistics.data.gov.uk/id/local-authority/30UE,Democratic Represent and  Mgnt,1007,Commercial Services,Gas,20014,Energy Costs,5006,apr may,12/06/2020,0146943,312.33,Revenue,Corona Energy Retail 2 Ltd,67249,,
Chorley Borough Council,http://statistics.data.gov.uk/id/local-authority/30UE,Unapportionable Central OHeads,1009,Commercial Services,Gas,20014,Energy Costs,5006,apr-may-20,12/06/2020,0146944,636.37,Revenue,Corona Energy Retail 2 Ltd,67249,,
Chorley Borough Council,http://statistics.data.gov.uk/id/local-authority/30UE,Unapportionable Central OHeads,1009,Commercial Services,Gas,20014,Energy Costs,5006,,12/06/2020,0146945,635.89,Revenue,Corona Energy Retail 2 Ltd,67249,,
Chorley Borough Council,http://statistics.data.gov.uk/id/local-authority/30UE,Business Support,1095,Commercial Services,Gas,20014,Energy Costs,5006,feb to apr 2020,26/06/2020,0147008,"10,445.68",Revenue,Corona Energy Retail 2 Ltd,67249,,
Chorley Borough Council,http://statistics.data.gov.uk/id/local-authority/30UE,Business Support,1095,Commercial Services,Gas,20014,Energy Costs,5006,apr to may 2020,26/06/2020,0147009,"7,391.50",Revenue,Corona Energy Retail 2 Ltd,67249,,
Chorley Borough Council,http://statistics.data.gov.uk/id/local-authority/30UE,Democratic Represent and  Mgnt,1007,Commercial Services,Gas,20014,Energy Costs,5006,may to jun 20,26/06/2020,0147285,638.68,Revenue,Corona Energy Retail 2 Ltd,67249,,
Chorley Borough Council,http://statistics.data.gov.uk/id/local-authority/30UE,Unapportionable Central OHeads,1009,Commercial Services,Gas,20014,Energy Costs,5006,may to jun20,26/06/2020,0147288,462.98,Revenue,Corona Energy Retail 2 Ltd,67249,,
Chorley Borough Council,http://statistics.data.gov.uk/id/local-authority/30UE,Homelessness,1075,Commercial Services,Gas,20014,Energy Costs,5006,may to jun 20,26/06/2020,0147289,538.38,Revenue,Corona Energy Retail 2 Ltd,67249,,
Chorley Borough Council,http://statistics.data.gov.uk/id/local-authority/30UE,Unapportionable Central OHeads,1009,Commercial Services,Gas,20014,Energy Costs,5006,may to jun 20,26/06/2020,0147296,699.51,Revenue,Corona Energy Retail 2 Ltd,67249,,
Chorley Borough Council,http://statistics.data.gov.uk/id/local-authority/30UE,Business Support,1095,Commercial Services,Gas,20014,Energy Costs,5006,may to jun 20,26/06/2020,0147299,"1,277.29",Revenue,Corona Energy Retail 2 Ltd,67249,,
Chorley Borough Council,http://statistics.data.gov.uk/id/local-authority/30UE,Central Support Services,1009,Early Intervention,Bailiffs' Fees,40071,Services,5027,Rough Sleeper Remover - Yarrow Valley Country Park Invoice 2617,19/06/2020,0147157,950.00,Revenue,COURT ENFORCEMENT SPECIALISTS LTD,77924,,
Chorley Borough Council,http://statistics.data.gov.uk/id/local-authority/30UE,Capital,Capital,Customer & Digital,maintena,03014,Capital Expenditure,Capital,240 L Neo plastic wheeled bin (GREY) Quantity = 600     with Chorley logo and RFID chip fitted..  Split delivery (300/300),17/06/2020,0146873,"5,145.00",Capital,Craemer UK Ltd,64712,,
Chorley Borough Council,http://statistics.data.gov.uk/id/local-authority/30UE,Capital,Capital,Customer & Digital,maintena,03014,Capital Expenditure,Capital,Supply of Neo 240L wheeled bin.     Colour : Green       Quantity 600 split delivery (300/300) Unit cost 16.60,03/06/2020,0146874,"4,980.00",Capital,Craemer UK Ltd,64712,,
Chorley Borough Council,http://statistics.data.gov.uk/id/local-authority/30UE,Central Support Services,1009,Commercial Services,Professional Fees,40063,Services,5027,Low carbon gap analysis towards the net carbon zero target.,24/06/2020,0147190,"2,400.00",Revenue,Crowberry Consulting,80308,,
Chorley Borough Council,http://statistics.data.gov.uk/id/local-authority/30UE,Central Support Services,1009,Customer & Digital,Computer Equipment - Security,40106,Communication and Computing,5028,to match off against credit note 0040,26/06/2020,0146659,"23,000.00",Revenue,DAC Technology Ltd,76398,,
Chorley Borough Council,http://statistics.data.gov.uk/id/local-authority/30UE,Economic Development,1096,Customer & Digital,Miscellaneous Expenses,40200,Miscellaneous Expenses,5034,1x Microboards QD-DVD-123 Technology QuicDisc Media Duplicator,10/06/2020,0146872,347.00,Revenue,DAC Technology Ltd,76398,,
Chorley Borough Council,http://statistics.data.gov.uk/id/local-authority/30UE,Building Control,1090,Customer & Digital,Agency Staff,13000,Direct Employee Expenses,5001,Agency fees for NAME REDACTED Building Control Officer 11.06.2020 & 12.06.2020,24/06/2020,0147276,705.00,Revenue,Deekay Technical Recruit Ltd,17160,,
Chorley Borough Council,http://statistics.data.gov.uk/id/local-authority/30UE,Control Accounts,Control,Policy & Governance,General Balances,00100,Balance Sheet,Balance,CMS,19/06/2020,0147187,428.77,Revenue,Department for Work and Pensions,80469,,
Chorley Borough Council,http://statistics.data.gov.uk/id/local-authority/30UE,Service Management & Support,1009,Customer & Digital,Grounds Maintenance Contractor,20043,Grounds Maintenance Costs,5013,Clean out silt traps at Yarrow valley Park.,03/06/2020,0146849,250.00,Revenue,Derek R Smith,21092,,
Chorley Borough Council,http://statistics.data.gov.uk/id/local-authority/30UE,Corporate Management,1008,Policy & Governance,Furniture - Purchase,40012,"Equipment, Furniture & Materia",5023,"9 x Aspen Rectangular desk, 7 x Cable Basket, 7 x Orthopaedica Task Chair with removeable fold down arms/multi func. arm pad",24/06/2020,0147104,"2,664.06",Revenue,Diamond Business Interiors Ltd,53722,,
Chorley Borough Council,http://statistics.data.gov.uk/id/local-authority/30UE,Building Control,1090,Customer & Digital,General Subscriptions,40146,Grants and Subscriptions,5031,LABC - Service Fee 2020 - 2021,17/06/2020,0147029,"2,110.54",Revenue,District Surveyors Association Limited,17538,,
Chorley Borough Council,http://statistics.data.gov.uk/id/local-authority/30UE,Control Accounts,Control,Policy & Governance,Manual Control Account,00001,Balance Sheet,Balance,Refund Unit 102A Market Street,03/06/2020,CRREF94,"1,317.62",Revenue,E.On,21330,,
Chorley Borough Council,http://statistics.data.gov.uk/id/local-authority/30UE,Capital,Capital,Early Intervention,Main Contractor,03007,Capital Expenditure,Capital,"Bat transect/automated detector survey to inform footpath lighting proposals at Astley Park, Chorley.  As letter on 31st Jan 2018.",24/06/2020,0146899,"3,560.90",Capital,Ecology Services,58852,,
Chorley Borough Council,http://statistics.data.gov.uk/id/local-authority/30UE,Central Support Services,1009,Customer & Digital,Mobile Voice and Data,40086,Communication and Computing,5028,03 May 2020,17/06/2020,0147127,"2,835.06",Revenue,EE - Orange,16486,,
Chorley Borough Council,http://statistics.data.gov.uk/id/local-authority/30UE,Central Support Services,1009,Customer & Digital,Mobile Voice and Data,40086,Communication and Computing,5028,03 April 2020,17/06/2020,0147128,"3,995.65",Revenue,EE - Orange,16486,,
Chorley Borough Council,http://statistics.data.gov.uk/id/local-authority/30UE,Central Support Services,1009,Customer & Digital,Mobile Voice and Data,40086,Communication and Computing,5028,03 Jun 2020,17/06/2020,0147129,"2,958.15",Revenue,EE - Orange,16486,,
Chorley Borough Council,http://statistics.data.gov.uk/id/local-authority/30UE,Unapportionable Central OHeads,1009,Customer & Digital,Depot Licences,40236,Miscellaneous Expenses,5034,FY 2020/2021 payment for permit EPR Ref: 3697CC/A001  As on invoice No.N00003905T,12/06/2020,0146988,"1,424.50",Revenue,Environment Agency,18256,,
Chorley Borough Council,http://statistics.data.gov.uk/id/local-authority/30UE,Central Support Services,1009,Commercial Services,Survey Expenses,40069,Services,5027,Site investigation & Geotechnical appraisal.,10/06/2020,0146931,"13,250.00",Revenue,Environmental Engineering Partnership Limited,78457,,
Chorley Borough Council,http://statistics.data.gov.uk/id/local-authority/30UE,Central Support Services,1009,Commercial Services,Professional Fees,40063,Services,5027,"Site Investigation, Geotechnical and Monitoring",24/06/2020,0146987,"10,540.00",Revenue,Environmental Engineering Partnership Limited,78457,,
Chorley Borough Council,http://statistics.data.gov.uk/id/local-authority/30UE,Capital,Capital,Early Intervention,Main Contractor,03007,Capital Expenditure,Capital,"Call-offs for Whittle GP Surgery: Asbestos removal, demolition, Japanese knotweed removal, enabling works, Service disconnect",17/06/2020,0146426,"14,243.34",Capital,Eric Wright Construction Ltd,76464,,
Chorley Borough Council,http://statistics.data.gov.uk/id/local-authority/30UE,Capital,Capital,Early Intervention,Main Contractor,03007,Capital Expenditure,Capital,"Call-offs for Whittle GP Surgery: Asbestos removal, demolition, Japanese knotweed removal, enabling works, Service disconnect",17/06/2020,0146986,"1,663.20",Capital,Eric Wright Construction Ltd,76464,,
Chorley Borough Council,http://statistics.data.gov.uk/id/local-authority/30UE,Business Support,1095,Commercial Services,Internet Charges,40104,Communication and Computing,5028,Call off p/o for Fixed Recurring Subscription Fees - April 2020 to March 2021 Connect Service Growth Edition: software charge,10/06/2020,0146930,"3,810.00",Revenue,Essensys Ltd,77836,,
Chorley Borough Council,http://statistics.data.gov.uk/id/local-authority/30UE,Business Support,1095,Commercial Services,Internet Charges,40104,Communication and Computing,5028,Call off p/o for Fixed Recurring Subscription Fees - April 2020 to March 2021 Connect Service Growth Edition: software charge,24/06/2020,0147212,"3,810.00",Revenue,Essensys Ltd,77836,,
Chorley Borough Council,http://statistics.data.gov.uk/id/local-authority/30UE,Service Management & Support,1009,Customer & Digital,Supplies-Grounds Maintenance,40025,"Equipment, Furniture & Materia",5023,60 x Privet (Ligustrum ovalifolium) 80-100cm 5L pots @11.00 each,26/06/2020,0147298,660.00,Revenue,Everglades Nurseries Ltd,20202,,
Chorley Borough Council,http://statistics.data.gov.uk/id/local-authority/30UE,Service Management & Support,1009,Customer & Digital,Tools & Equipment - Hire,40004,"Equipment, Furniture & Materia",5023,hire of ransomes front deck flail for 4 week hire from 4th May @350.00 per week,05/06/2020,0146841,"1,400.00",Revenue,F R Sharrock Ltd,18091,,
Chorley Borough Council,http://statistics.data.gov.uk/id/local-authority/30UE,Service Management & Support,1009,Customer & Digital,Vehicles and Plant Maintenance,30045,Direct Transport Costs,5016,Repairs to- PO15 HRL as per pro forma  No 106649,12/06/2020,0146992,706.10,Revenue,F R Sharrock Ltd,18091,,
Chorley Borough Council,http://statistics.data.gov.uk/id/local-authority/30UE,Corporate Management,1008,Customer & Digital,Unitary Payment(S),50009,Private Contractors,5042,Provision of waste and recycling collection services 2020-2021,03/06/2020,0146768,"177,900.98",Revenue,FCC Environment Services (UK) Limited,77903,,
Chorley Borough Council,http://statistics.data.gov.uk/id/local-authority/30UE,Corporate Management,1008,Customer & Digital,Unitary Payment(S),50009,Private Contractors,5042,Provision of waste and recycling collection services 2020-2021,26/06/2020,0147266,"177,986.10",Revenue,FCC Environment Services (UK) Limited,77903,,
Chorley Borough Council,http://statistics.data.gov.uk/id/local-authority/30UE,Business Support,1095,Commercial Services,Gas,20014,Energy Costs,5006,1/4/20 to 30/4/20,03/06/2020,0146683,331.59,Revenue,Gazprom Energy,56502,,
Chorley Borough Council,http://statistics.data.gov.uk/id/local-authority/30UE,Democratic Represent and  Mgnt,1007,Customer & Digital,Playground Equipment,40008,"Equipment, Furniture & Materia",5023,"JHook Cradle Seat, 2 Pod Cradle Seat, 6 Rubber Crumb - 25kgs, tile adhesive 1.1kg - box 12, 6 Pendulum seat - with u-bolts",26/06/2020,0147136,"1,141.86",Revenue,GB Sport & Leisure,21305,,
Chorley Borough Council,http://statistics.data.gov.uk/id/local-authority/30UE,Service Management & Support,1009,Customer & Digital,Tools & Equipment - Hire,40004,"Equipment, Furniture & Materia",5023,hire of Kubota F series with flail for 3 week hire from 11th May @450.00 per week,19/06/2020,0146865,"1,350.00",Revenue,Gibsons Garden Machinery Ltd,17550,,
Chorley Borough Council,http://statistics.data.gov.uk/id/local-authority/30UE,Development Control,1091,Customer & Digital,Legal Fees,40171,Miscellaneous Expenses,5034,ADDRESS REDACTED - Advice - (CONTACT REF: ) [C: 452521][B:GC] [KINGS],24/06/2020,0147263,"2,500.00",Revenue,Mr Gilles Cannock - King's Chambers,16463,,
Chorley Borough Council,http://statistics.data.gov.uk/id/local-authority/30UE,Service Management & Support,1009,Customer & Digital,Hire Of Vehicles and Plant,30028,Contrct Hire & Operating Lease,5018,3 year contract hire of 1 x Schimdt Swingoo 200+ as per the ITT including servicing and maintenance.,03/06/2020,0146783,"2,019.85",Revenue,Go Plant Ltd,77990,,
Chorley Borough Council,http://statistics.data.gov.uk/id/local-authority/30UE,Service Management & Support,1009,Customer & Digital,Hire Of Vehicles and Plant,30028,Contrct Hire & Operating Lease,5018,3 year Contract hire of a Chassis mounted Sweeper as per the ITT including servicing and maintenance. paid monthly in arrears,03/06/2020,0146784,"2,772.31",Revenue,Go Plant Ltd,77990,,
Chorley Borough Council,http://statistics.data.gov.uk/id/local-authority/30UE,Service Management & Support,1009,Customer & Digital,Hire Of Vehicles and Plant,30028,Contrct Hire & Operating Lease,5018,3 year contract hire of 1 x Schimdt Swingoo 200+ as per the ITT including servicing and maintenance.,03/06/2020,0146785,"2,019.85",Revenue,Go Plant Ltd,77990,,
Chorley Borough Council,http://statistics.data.gov.uk/id/local-authority/30UE,Service Management & Support,1009,Customer & Digital,Hire Of Vehicles and Plant,30028,Contrct Hire & Operating Lease,5018,3 year contract hire of 1 x Johnston CN101 as per the ITT including servicing and maintenance.,03/06/2020,0146786,"1,762.23",Revenue,Go Plant Ltd,77990,,
Chorley Borough Council,http://statistics.data.gov.uk/id/local-authority/30UE,Service Management & Support,1009,Customer & Digital,Vehicles and Plant Maintenance,30045,Direct Transport Costs,5016,"10 mixed polywire brushes for Johnston, 6 Mixed polywire brushes for Schmidt Swingo 200, Carriage,  Delivery to Bengal Street",03/06/2020,0146833,572.02,Revenue,Go Plant Ltd,77990,,
Chorley Borough Council,http://statistics.data.gov.uk/id/local-authority/30UE,Service Management & Support,1009,Customer & Digital,Hire Of Vehicles and Plant,30028,Contrct Hire & Operating Lease,5018,3 year contract hire of 1 x Johnston CN101 as per the ITT including servicing and maintenance.,26/06/2020,0147326,"1,762.23",Revenue,Go Plant Ltd,77990,,
Chorley Borough Council,http://statistics.data.gov.uk/id/local-authority/30UE,Service Management & Support,1009,Customer & Digital,Hire Of Vehicles and Plant,30028,Contrct Hire & Operating Lease,5018,3 year contract hire of 1 x Schimdt Swingoo 200+ as per the ITT including servicing and maintenance.,26/06/2020,0147327,"2,019.85",Revenue,Go Plant Ltd,77990,,
Chorley Borough Council,http://statistics.data.gov.uk/id/local-authority/30UE,Service Management & Support,1009,Customer & Digital,Hire Of Vehicles and Plant,30028,Contrct Hire & Operating Lease,5018,3 year Contract hire of a Chassis mounted Sweeper as per the ITT including servicing and maintenance. paid monthly in arrears,26/06/2020,0147328,"2,772.31",Revenue,Go Plant Ltd,77990,,
Chorley Borough Council,http://statistics.data.gov.uk/id/local-authority/30UE,Service Management & Support,1009,Customer & Digital,Hire Of Vehicles and Plant,30028,Contrct Hire & Operating Lease,5018,3 year contract hire of 1 x Schimdt Swingoo 200+ as per the ITT including servicing and maintenance.,26/06/2020,0147329,"2,019.85",Revenue,Go Plant Ltd,77990,,
Chorley Borough Council,http://statistics.data.gov.uk/id/local-authority/30UE,Central Support Services,1009,Commercial Services,Survey Expenses,40069,Services,5027,"Quantity surveying services for; Bengal Street, Alker Lane, Tatton.",03/06/2020,0146867,"2,197.25",Revenue,Gosling Construction Services,78380,,
Chorley Borough Council,http://statistics.data.gov.uk/id/local-authority/30UE,Central Support Services,1009,Commercial Services,Professional Fees,40063,Services,5027,"Quantity surveying services for; Bengal Street, Alker Lane, Tatton.",03/06/2020,0146867,"2,271.50",Revenue,Gosling Construction Services,78380,,
Chorley Borough Council,http://statistics.data.gov.uk/id/local-authority/30UE,Central Support Services,1009,Customer & Digital,Vandalism Repairs,20005,Repairs Maintenance & Alts,5005,Graffiti removal contract 6 months November 19 - May 20,03/06/2020,0146848,835.00,Revenue,Graffiti Away Ltd,78340,,
Chorley Borough Council,http://statistics.data.gov.uk/id/local-authority/30UE,Business Support,1095,Commercial Services,Stationery,40050,"Printing, Stationery & General",5026,"HP No.953XL Ink Cart HC Black x 2, HP No.953XL Ink Cart HC Cyan x 2, HP No.953XL Ink Cart HC Magenta x 2",17/06/2020,0147059,259.60,Revenue,Grafton Projects Limited,76545,,
Chorley Borough Council,http://statistics.data.gov.uk/id/local-authority/30UE,Corporate Management,1008,Commercial Services,Miscellaneous Expenses,40200,Miscellaneous Expenses,5034,"20 x Pavement sign @ 107.37 each, 1 delivery charge of 7.90 Deliver FAO: NAME REDACTED. Chorley Market, PR7 1BH. ",19/06/2020,0147154,"2,155.30",Revenue,Grafton Projects Limited,76545,,
Chorley Borough Council,http://statistics.data.gov.uk/id/local-authority/30UE,Corporate Management,1008,Policy & Governance,External Audit,40064,Services,5027,"Additional work carried out on the 2018-19 audit: Assessing the impact of the McCloud ruling, Pensions: IAS 19, PPE Valuation",03/06/2020,0142245,"4,500.00",Revenue,Grant Thornton UK LLP,57322,,
Chorley Borough Council,http://statistics.data.gov.uk/id/local-authority/30UE,Corporate Management,1008,Policy & Governance,External Audit,40064,Services,5027,Chorley Council Main Audit Fee 2019-20,10/06/2020,0146985,"8,711.50",Revenue,Grant Thornton UK LLP,57322,,
Chorley Borough Council,http://statistics.data.gov.uk/id/local-authority/30UE,Corporate Management,1008,Commercial Services,Publicity - Advertising,40157,Miscellaneous Expenses,5034,"Social Media for Market Walk, Chorley. April to June @500 per month Total 1500 + VAT",19/06/2020,0146984,500.00,Revenue,Gravity,77837,,
Chorley Borough Council,http://statistics.data.gov.uk/id/local-authority/30UE,Central Support Services,1009,Early Intervention,Miscellaneous Expenses,40200,Miscellaneous Expenses,5034,"Quotation reference No. 23100/1 Supply of Aluminium AF30 8A4 Noticeboard with posts, accessories and delivery",05/06/2020,0146881,541.60,Revenue,Greenbarnes Ltd,78569,,
Chorley Borough Council,http://statistics.data.gov.uk/id/local-authority/30UE,Community Development,1097,Policy & Governance,Core Funding Grants,40133,Grants and Subscriptions,5031,Annual commission for the provision of a Children and families support service in Chorley,24/06/2020,0147251,"9,167.00",Revenue,Home-Start Central Lancashire Ltd,20585,,
Chorley Borough Council,http://statistics.data.gov.uk/id/local-authority/30UE,Homelessness,1075,Early Intervention,Service Fees,40056,Services,5027,Accommodation at The Hunters Lodge NAME REDACTED 30.04.2020 to 27.5.2020 NAME REDACTED 18.05.2020 to 20.05.2020 ,12/06/2020,0147081,560.00,Revenue,Hunters Lodge Motel,51146,,
Chorley Borough Council,http://statistics.data.gov.uk/id/local-authority/30UE,Homelessness,1075,Early Intervention,Service Fees,40056,Services,5027,Accommodation at The Hunters Lodge NAME REDACTED 30.04.2020 to 27.5.2020 NAME REDACTED 18.05.2020 to 20.05.2020 ,24/06/2020,0147210,680.00,Revenue,Hunters Lodge Motel,51146,,
Chorley Borough Council,http://statistics.data.gov.uk/id/local-authority/30UE,Central Support Services,1009,Customer & Digital,Telephones - Other,40085,Communication and Computing,5028,10 days consultancy,26/06/2020,0147098,"6,500.00",Revenue,Hybrit LLP,77925,,
Chorley Borough Council,http://statistics.data.gov.uk/id/local-authority/30UE,Corporate Management,1008,Policy & Governance,Other Fees,40212,Miscellaneous Expenses,5034,Subsidy for the provision of a meals on wheels service in Chorley from 27/04 to 24/05,17/06/2020,0146871,"2,050.00",Revenue,I Care GB Ltd,77247,,
Chorley Borough Council,http://statistics.data.gov.uk/id/local-authority/30UE,Planning Policy,1092,Customer & Digital,Professional Fees,40063,Services,5027,GLADMAN - PEAR TREE LANE PUBLIC INQUIRY � EVIDENCE ON HOUSING NEEDS & PLANNING ISSUES,24/06/2020,0147057,"3,000.00",Revenue,Iceni Projects Ltd,77968,,
Chorley Borough Council,http://statistics.data.gov.uk/id/local-authority/30UE,Corporate Management,1008,Customer & Digital,Clinical Waste Collection,50007,Private Contractors,5042,Provision of service for the collection and disposal of Clinical waste from domestic properties in Chorley area. Dec 19 - March 20,03/06/2020,0146810,851.38,Revenue,Initial,78488,,
Chorley Borough Council,http://statistics.data.gov.uk/id/local-authority/30UE,Corporate Management,1008,Customer & Digital,Clinical Waste Collection,50007,Private Contractors,5042,Provision of service for the collection and disposal of Clinical waste from domestic properties in Chorley area. April 20 to March 21,24/06/2020,0147259,901.78,Revenue,Initial,78488,,
Chorley Borough Council,http://statistics.data.gov.uk/id/local-authority/30UE,Control Accounts,Control,System,Manual Control Account,00001,Balance Sheet,Balance,,24/06/2020,0147228,759.52,Revenue,Inland Revenue 065py00102078,17445,,
Chorley Borough Council,http://statistics.data.gov.uk/id/local-authority/30UE,Unapportionable Central OHeads,1009,Commercial Services,Planned Maintenance,20006,Repairs Maintenance & Alts,5005,Blanket order for rent of CAB/MP office,05/06/2020,0146967,"7,218.75",Revenue,J R Keys,17124,,
Chorley Borough Council,http://statistics.data.gov.uk/id/local-authority/30UE,Business Support,1095,Commercial Services,Refuse Collection,20037,Cleaning and Domestic Supplies,5012,Waste Compactor Rental Services @ 270 per month for the 01 April 2020 - 31/03/2021,03/06/2020,0146870,270.00,Revenue,J&H Rentals Limited,70699,,
Chorley Borough Council,http://statistics.data.gov.uk/id/local-authority/30UE,Planning Policy,1092,Early Intervention,Professional Fees,40063,Services,5027,For professional services rendered and expenses incurred in connection with the Central Lancashire Flood Risk Assessment.,10/06/2020,0146993,"4,000.00",Revenue,JBA Consulting,77859,,
Chorley Borough Council,http://statistics.data.gov.uk/id/local-authority/30UE,Service Management & Support,1009,Customer & Digital,Vehicles and Plant Operating Lease,30029,Contrct Hire & Operating Lease,5018,Lease July 2020 to July 2021 - Nissan NV200 Panel Van PN15 YWB,17/06/2020,0146958,"1,902.93",Revenue,Jcb Finance Ltd,17684,,
Chorley Borough Council,http://statistics.data.gov.uk/id/local-authority/30UE,Service Management & Support,1009,Customer & Digital,Vehicles and Plant Operating Lease,30029,Contrct Hire & Operating Lease,5018,Lease July 2020 to July 2021 - Nissan NV200 Panel Van PO15 VFZ,17/06/2020,0146958,"1,902.93",Revenue,Jcb Finance Ltd,17684,,
Chorley Borough Council,http://statistics.data.gov.uk/id/local-authority/30UE,Service Management & Support,1009,Customer & Digital,Vehicles and Plant Operating Lease,30029,Contrct Hire & Operating Lease,5018,Lease July 2020 to July 2021 - Nissan NV200 Panel Van PO15 VHD,17/06/2020,0146958,"1,902.93",Revenue,Jcb Finance Ltd,17684,,
Chorley Borough Council,http://statistics.data.gov.uk/id/local-authority/30UE,Service Management & Support,1009,Customer & Digital,Vehicles and Plant Operating Lease,30029,Contrct Hire & Operating Lease,5018,Lease July 2020 to July 2021 - Nissan NV200 Panel Van PO15 VHE,17/06/2020,0146958,"1,902.93",Revenue,Jcb Finance Ltd,17684,,
Chorley Borough Council,http://statistics.data.gov.uk/id/local-authority/30UE,Service Management & Support,1009,Customer & Digital,Vehicles and Plant Operating Lease,30029,Contrct Hire & Operating Lease,5018,Lease July 2020 to July 2021 - Nissan NV200 Panel Van PO15 VHF,17/06/2020,0146958,"1,902.92",Revenue,Jcb Finance Ltd,17684,,
Chorley Borough Council,http://statistics.data.gov.uk/id/local-authority/30UE,Development Control,1091,Customer & Digital,Statutory Notices,40160,Miscellaneous Expenses,5034,Planning Public Notices to appear in the Chorley Guardian April 2020 to March 2021,03/06/2020,0146586,445.74,Revenue,JPI Media - Johnston Publishing Ltd,20072,,
Chorley Borough Council,http://statistics.data.gov.uk/id/local-authority/30UE,Unapportionable Central OHeads,1009,Customer & Digital,Publications,40054,"Printing, Stationery & General",5026,Chorley Guardian - Public notices,10/06/2020,0146781,978.88,Revenue,JPI Media - Johnston Publishing Ltd,20072,,
Chorley Borough Council,http://statistics.data.gov.uk/id/local-authority/30UE,Central Support Services,1009,Customer & Digital,Miscellaneous Expenses,40200,Miscellaneous Expenses,5034,as discussed with NAME REDACTED 30 x Deb sanitiser 1L cartridges 10 x Deb dispensers,03/06/2020,0146766,347.40,Revenue,Key Engineering & Hygene Supplies,51615,,
Chorley Borough Council,http://statistics.data.gov.uk/id/local-authority/30UE,Unapportionable Central OHeads,1009,Commercial Services,General Repairs - Reactive,20004,Repairs Maintenance & Alts,5005,Foam Hand Sanitiser and Dispensers for union st,26/06/2020,0146838,833.76,Revenue,Key Engineering & Hygene Supplies,51615,,
Chorley Borough Council,http://statistics.data.gov.uk/id/local-authority/30UE,Economic Development,1096,Commercial Services,Protective Clothing,40040,"Clothing, Uniforms and Laundry",5025,50 x  denim face coverings with exhalation valve (No logo) 50 x 100 denim face coverings with NO exhalation valve (No logo),24/06/2020,0147232,"1,050.00",Revenue,Key Engineering & Hygene Supplies,51615,,
Chorley Borough Council,http://statistics.data.gov.uk/id/local-authority/30UE,Corporate Management,1008,Customer & Digital,Miscellaneous Expenses,40200,Miscellaneous Expenses,5034,14 x hand sanitiser 5L @ 35.00 each,26/06/2020,0147245,490.98,Revenue,Key Engineering & Hygene Supplies,51615,,
Chorley Borough Council,http://statistics.data.gov.uk/id/local-authority/30UE,Corporate Management,1008,Customer & Digital,Miscellaneous Expenses,40200,Miscellaneous Expenses,5034,10 x reusable gloves B0700R @ 0.90 each,26/06/2020,0147245,9.00,Revenue,Key Engineering & Hygene Supplies,51615,,
Chorley Borough Council,http://statistics.data.gov.uk/id/local-authority/30UE,Service Management & Support,1009,Customer & Digital,Hire of Plant,40001,"Equipment, Furniture & Materia",5023,To hire a Kubota compact tractor with rotavator. Deliver to Bengal St depot,03/06/2020,0145968,358.00,Revenue,KH Hire Ltd,78531,,
Chorley Borough Council,http://statistics.data.gov.uk/id/local-authority/30UE,Service Management & Support,1009,Customer & Digital,Hire of Plant,40001,"Equipment, Furniture & Materia",5023,"To hire mini tractor with rotovator for 2 days. Deliver to Bengal St depot, Chorley",12/06/2020,0146925,300.00,Revenue,KH Hire Ltd,78531,,
Chorley Borough Council,http://statistics.data.gov.uk/id/local-authority/30UE,Unapportionable Central OHeads,1009,Commercial Services,Asset Maintenance Fund,20012,Repairs Maintenance & Alts,5005,Clearing out of goods from ADDRESS REDACTED,03/06/2020,0146780,"1,795.00",Revenue,Lancashire Clearance Services Ltd,79462,,
Chorley Borough Council,http://statistics.data.gov.uk/id/local-authority/30UE,Public Transport,1067,Customer & Digital,Other Fees,40212,Miscellaneous Expenses,5034,Rent for newsagent and caf� at Chorley Interchange 2019/20.,26/06/2020,0145995,"15,500.00",Revenue,Lancashire County Council,17758,,
Chorley Borough Council,http://statistics.data.gov.uk/id/local-authority/30UE,Capital,Capital,Early Intervention,Grants,03002,Capital Expenditure,Capital,ADDRESS REDACTED  ,03/06/2020,0146837,"2,554.00",Capital,Lancashire County Council,17758,,
Chorley Borough Council,http://statistics.data.gov.uk/id/local-authority/30UE,Capital,Capital,Early Intervention,Grants,03002,Capital Expenditure,Capital,ADDRESS REDACTED  ,03/06/2020,0146850,"5,830.00",Capital,Lancashire County Council,17758,,
Chorley Borough Council,http://statistics.data.gov.uk/id/local-authority/30UE,Capital,Capital,Early Intervention,Grants,03002,Capital Expenditure,Capital,ADDRESS REDACTED  ,17/06/2020,0147013,"7,348.00",Capital,Lancashire County Council,17758,,
Chorley Borough Council,http://statistics.data.gov.uk/id/local-authority/30UE,Capital,Capital,Early Intervention,Grants,03002,Capital Expenditure,Capital,ADDRESS REDACTED  ,17/06/2020,0147014,"4,265.00",Capital,Lancashire County Council,17758,,
Chorley Borough Council,http://statistics.data.gov.uk/id/local-authority/30UE,Capital,Capital,Early Intervention,Grants,03002,Capital Expenditure,Capital,ADDRESS REDACTED  ,17/06/2020,0147078,"3,570.00",Capital,Lancashire County Council,17758,,
Chorley Borough Council,http://statistics.data.gov.uk/id/local-authority/30UE,Capital,Capital,Early Intervention,Grants,03002,Capital Expenditure,Capital,ADDRESS REDACTED  ,17/06/2020,0147080,"4,242.00",Capital,Lancashire County Council,17758,,
Chorley Borough Council,http://statistics.data.gov.uk/id/local-authority/30UE,Capital,Capital,Early Intervention,Grants,03002,Capital Expenditure,Capital,ADDRESS REDACTED  ,17/06/2020,0147083,"6,956.00",Capital,Lancashire County Council,17758,,
Chorley Borough Council,http://statistics.data.gov.uk/id/local-authority/30UE,Capital,Capital,Early Intervention,Grants,03002,Capital Expenditure,Capital,ADDRESS REDACTED  ,19/06/2020,0147144,"2,476.20",Capital,Lancashire County Council,17758,,
Chorley Borough Council,http://statistics.data.gov.uk/id/local-authority/30UE,Capital,Capital,Early Intervention,Grants,03002,Capital Expenditure,Capital,ADDRESS REDACTED  ,19/06/2020,0147145,"1,300.00",Capital,Lancashire County Council,17758,,
Chorley Borough Council,http://statistics.data.gov.uk/id/local-authority/30UE,Capital,Capital,Commercial Services,Main Contractor,03007,Capital Expenditure,Capital,"FAO - NAME REDACTED. Re - Arley Street car park Disconnect REC electrical supply, relocate feeder pillar, Reconnection",17/06/2020,0147151,"3,000.00",Capital,Lancashire County Council,20027,,
Chorley Borough Council,http://statistics.data.gov.uk/id/local-authority/30UE,Capital,Capital,Early Intervention,Grants,03002,Capital Expenditure,Capital,19/00154/CAG,24/06/2020,0147239,"2,930.00",Capital,Lancashire County Council,17758,,
Chorley Borough Council,http://statistics.data.gov.uk/id/local-authority/30UE,Corporate Management,1008,Commercial Services,Miscellaneous Expenses,40200,Miscellaneous Expenses,5034,drainage works for 4 covid 19 units on west st car park - 3 treatment cabins and 1 toilet cabin. Linked to The Chorley Surgery,19/06/2020,0147032,"3,001.10",Revenue,Lancashire Gas Services Ltd,78192,,
Chorley Borough Council,http://statistics.data.gov.uk/id/local-authority/30UE,Unapportionable Central OHeads,1009,Commercial Services,Asset Maintenance Fund,20012,Repairs Maintenance & Alts,5005,Refugee Reactive,19/06/2020,0147084,511.98,Revenue,Lancashire Gas Services Ltd,78192,,
Chorley Borough Council,http://statistics.data.gov.uk/id/local-authority/30UE,Corporate Management,1008,Commercial Services,Miscellaneous Expenses,40200,Miscellaneous Expenses,5034,screen at primrose gardens reception - covid 19 protection,12/06/2020,0147086,369.15,Revenue,Lancashire Gas Services Ltd,78192,,
Chorley Borough Council,http://statistics.data.gov.uk/id/local-authority/30UE,Unapportionable Central OHeads,1009,Policy & Governance,Consultants` Fees,40077,Services,5027,Half day P11D HMRC return consultancy (phase1),10/06/2020,0146974,750.00,Revenue,LAVAT Consulting Ltd,76942,,
Chorley Borough Council,http://statistics.data.gov.uk/id/local-authority/30UE,Corporate Management,1008,Policy & Governance,Car Leasing Payment,14100,Direct Employee Expenses,5001,VIN REDACTED,03/06/2020,0146779,280.86,Revenue,LeasePlan UK Ltd T/A Automotive Leasing,65197,,
Chorley Borough Council,http://statistics.data.gov.uk/id/local-authority/30UE,Corporate Management,1008,Policy & Governance,Car Leasing Payment,14100,Direct Employee Expenses,5001,vat,03/06/2020,0146779,25.02,Revenue,LeasePlan UK Ltd T/A Automotive Leasing,65197,,
Chorley Borough Council,http://statistics.data.gov.uk/id/local-authority/30UE,Control Accounts,Control,Policy & Governance,Manual Control Account,00001,Balance Sheet,Balance,-vat,03/06/2020,0146779,-25.02,Revenue,LeasePlan UK Ltd T/A Automotive Leasing,65197,,
Chorley Borough Council,http://statistics.data.gov.uk/id/local-authority/30UE,Service Management & Support,1009,Customer & Digital,Grounds Maintenance Contractor,20043,Grounds Maintenance Costs,5013,Tree work completed in April and May.,19/06/2020,0147161,"4,700.00",Revenue,M J Walker,62044,,
Chorley Borough Council,http://statistics.data.gov.uk/id/local-authority/30UE,Unapportionable Central OHeads,1009,Policy & Governance,Legal Fees,40171,Miscellaneous Expenses,5034,Settlement Agreement for NAME REDACTED,05/06/2020,0146714,420.00,Revenue,Marsden Rawsthorn Solicitors Ltd,80388,,
Chorley Borough Council,http://statistics.data.gov.uk/id/local-authority/30UE,Unapportionable Central OHeads,1009,Commercial Services,Planned Maintenance,20006,Repairs Maintenance & Alts,5005,Blanket PPM,12/06/2020,0146855,621.24,Revenue,Maxigiene Environmental Services Ltd,67160,,
Chorley Borough Council,http://statistics.data.gov.uk/id/local-authority/30UE,Corporate Management,1008,Commercial Services,Miscellaneous Expenses,40200,Miscellaneous Expenses,5034,Recommissioning of community centres following covid 19 closedown,05/06/2020,0146857,800.00,Revenue,Maxigiene Environmental Services Ltd,67160,,
Chorley Borough Council,http://statistics.data.gov.uk/id/local-authority/30UE,Service Management & Support,1009,Customer & Digital,Supplies-Grounds Maintenance,40025,"Equipment, Furniture & Materia",5023,"20 ton Grade 1 top soil, delivered to Bengal St depot",12/06/2020,0147079,445.00,Revenue,Mc & Ma Stewart (Haulage Ltd),16627,,
Chorley Borough Council,http://statistics.data.gov.uk/id/local-authority/30UE,Unapportionable Central OHeads,1009,Commercial Services,General Repairs - Reactive,20004,Repairs Maintenance & Alts,5005,Blanket order for small drainage jobs at chorley,03/06/2020,0146863,280.00,Revenue,Michael Roe,78294,,
Chorley Borough Council,http://statistics.data.gov.uk/id/local-authority/30UE,Unapportionable Central OHeads,1009,Commercial Services,General Repairs - Reactive,20004,Repairs Maintenance & Alts,5005,Blanket order for small drainage jobs at chorley,03/06/2020,0146864,280.00,Revenue,Michael Roe,78294,,
Chorley Borough Council,http://statistics.data.gov.uk/id/local-authority/30UE,Planning Policy,1092,Commercial Services,Legal Fees,40171,Miscellaneous Expenses,5034,drafting 146 notice,19/06/2020,0146903,750.00,Revenue,Miss Rebecca Cattermole,78532,,
Chorley Borough Council,http://statistics.data.gov.uk/id/local-authority/30UE,Planning Policy,1092,Commercial Services,Legal Fees,40171,Miscellaneous Expenses,5034,interlec & advising,19/06/2020,0146903,100.00,Revenue,Miss Rebecca Cattermole,78532,,
Chorley Borough Council,http://statistics.data.gov.uk/id/local-authority/30UE,Planning Policy,1092,Commercial Services,Legal Fees,40171,Miscellaneous Expenses,5034,advise by email,19/06/2020,0146903,50.00,Revenue,Miss Rebecca Cattermole,78532,,
Chorley Borough Council,http://statistics.data.gov.uk/id/local-authority/30UE,Planning Policy,1092,Commercial Services,Legal Fees,40171,Miscellaneous Expenses,5034,advise by email on forfeiture,19/06/2020,0146903,75.00,Revenue,Miss Rebecca Cattermole,78532,,
Chorley Borough Council,http://statistics.data.gov.uk/id/local-authority/30UE,Planning Policy,1092,Commercial Services,Legal Fees,40171,Miscellaneous Expenses,5034,email on releif on forteiture,19/06/2020,0146903,300.00,Revenue,Miss Rebecca Cattermole,78532,,
Chorley Borough Council,http://statistics.data.gov.uk/id/local-authority/30UE,Planning Policy,1092,Commercial Services,Legal Fees,40171,Miscellaneous Expenses,5034,balbi letter,19/06/2020,0146903,600.00,Revenue,Miss Rebecca Cattermole,78532,,
Chorley Borough Council,http://statistics.data.gov.uk/id/local-authority/30UE,Planning Policy,1092,Commercial Services,Legal Fees,40171,Miscellaneous Expenses,5034,COUNSELS ADVICE IN THE MATTER OF A CLAIM FOR ADVERSE POSSESSION OF LAND NEAR ADDRESS REDACTED,05/06/2020,0146907,"2,100.00",Revenue,Miss Rebecca Cattermole,78532,,
Chorley Borough Council,http://statistics.data.gov.uk/id/local-authority/30UE,Planning Policy,1092,Commercial Services,Legal Fees,40171,Miscellaneous Expenses,5034,Counsel`s Advice in the matter of Land at ADDRESS REDACTED,12/06/2020,0146908,"3,075.00",Revenue,Miss Rebecca Cattermole,78532,,
Chorley Borough Council,http://statistics.data.gov.uk/id/local-authority/30UE,Private Sector HSG Renewal,1073,Early Intervention,External Contractor,40198,Miscellaneous Expenses,5034,3056,03/06/2020,0146836,66.00,Revenue,Mobility Care Services,70841,,
Chorley Borough Council,http://statistics.data.gov.uk/id/local-authority/30UE,Private Sector HSG Renewal,1073,Early Intervention,External Contractor,40198,Miscellaneous Expenses,5034,3199,03/06/2020,0146836,128.00,Revenue,Mobility Care Services,70841,,
Chorley Borough Council,http://statistics.data.gov.uk/id/local-authority/30UE,Private Sector HSG Renewal,1073,Early Intervention,External Contractor,40198,Miscellaneous Expenses,5034,3287,03/06/2020,0146836,66.00,Revenue,Mobility Care Services,70841,,
Chorley Borough Council,http://statistics.data.gov.uk/id/local-authority/30UE,Private Sector HSG Renewal,1073,Early Intervention,External Contractor,40198,Miscellaneous Expenses,5034,3384,03/06/2020,0146836,66.00,Revenue,Mobility Care Services,70841,,
Chorley Borough Council,http://statistics.data.gov.uk/id/local-authority/30UE,Private Sector HSG Renewal,1073,Early Intervention,External Contractor,40198,Miscellaneous Expenses,5034,3400,03/06/2020,0146836,111.00,Revenue,Mobility Care Services,70841,,
Chorley Borough Council,http://statistics.data.gov.uk/id/local-authority/30UE,Private Sector HSG Renewal,1073,Early Intervention,External Contractor,40198,Miscellaneous Expenses,5034,3402,03/06/2020,0146836,66.00,Revenue,Mobility Care Services,70841,,
Chorley Borough Council,http://statistics.data.gov.uk/id/local-authority/30UE,Private Sector HSG Renewal,1073,Early Intervention,External Contractor,40198,Miscellaneous Expenses,5034,3403,03/06/2020,0146836,66.00,Revenue,Mobility Care Services,70841,,
Chorley Borough Council,http://statistics.data.gov.uk/id/local-authority/30UE,Private Sector HSG Renewal,1073,Early Intervention,External Contractor,40198,Miscellaneous Expenses,5034,3404,03/06/2020,0146836,66.00,Revenue,Mobility Care Services,70841,,
Chorley Borough Council,http://statistics.data.gov.uk/id/local-authority/30UE,Private Sector HSG Renewal,1073,Early Intervention,External Contractor,40198,Miscellaneous Expenses,5034,3412,03/06/2020,0146836,512.00,Revenue,Mobility Care Services,70841,,
Chorley Borough Council,http://statistics.data.gov.uk/id/local-authority/30UE,Private Sector HSG Renewal,1073,Early Intervention,External Contractor,40198,Miscellaneous Expenses,5034,3413,03/06/2020,0146836,294.00,Revenue,Mobility Care Services,70841,,
Chorley Borough Council,http://statistics.data.gov.uk/id/local-authority/30UE,Private Sector HSG Renewal,1073,Early Intervention,External Contractor,40198,Miscellaneous Expenses,5034,3422,03/06/2020,0146836,66.00,Revenue,Mobility Care Services,70841,,
Chorley Borough Council,http://statistics.data.gov.uk/id/local-authority/30UE,Private Sector HSG Renewal,1073,Early Intervention,External Contractor,40198,Miscellaneous Expenses,5034,3421,03/06/2020,0146836,66.00,Revenue,Mobility Care Services,70841,,
Chorley Borough Council,http://statistics.data.gov.uk/id/local-authority/30UE,Private Sector HSG Renewal,1073,Early Intervention,External Contractor,40198,Miscellaneous Expenses,5034,3353,03/06/2020,0146836,128.00,Revenue,Mobility Care Services,70841,,
Chorley Borough Council,http://statistics.data.gov.uk/id/local-authority/30UE,Private Sector HSG Renewal,1073,Early Intervention,External Contractor,40198,Miscellaneous Expenses,5034,3432,03/06/2020,0146836,66.00,Revenue,Mobility Care Services,70841,,
Chorley Borough Council,http://statistics.data.gov.uk/id/local-authority/30UE,Private Sector HSG Renewal,1073,Early Intervention,External Contractor,40198,Miscellaneous Expenses,5034,3433,03/06/2020,0146836,111.00,Revenue,Mobility Care Services,70841,,
Chorley Borough Council,http://statistics.data.gov.uk/id/local-authority/30UE,Private Sector HSG Renewal,1073,Early Intervention,External Contractor,40198,Miscellaneous Expenses,5034,3434,03/06/2020,0146836,128.00,Revenue,Mobility Care Services,70841,,
Chorley Borough Council,http://statistics.data.gov.uk/id/local-authority/30UE,Private Sector HSG Renewal,1073,Early Intervention,External Contractor,40198,Miscellaneous Expenses,5034,3441,03/06/2020,0146836,66.00,Revenue,Mobility Care Services,70841,,
Chorley Borough Council,http://statistics.data.gov.uk/id/local-authority/30UE,Capital,Capital,Early Intervention,Grants,03002,Capital Expenditure,Capital,ADDRESS REDACTED,03/06/2020,0146851,"1,160.00",Capital,Mobility Care Services,70841,,
Chorley Borough Council,http://statistics.data.gov.uk/id/local-authority/30UE,Unapportionable Central OHeads,1009,Policy & Governance,Other Licence Fees,40231,Miscellaneous Expenses,5034,MPLC Umbrella Licence covering the term11 June 2020 to 11 June 2021.,10/06/2020,0146173,"3,464.66",Revenue,Motion Picture Licensing Company Limited,65600,,
Chorley Borough Council,http://statistics.data.gov.uk/id/local-authority/30UE,Business Support,1095,Commercial Services,Promotional Expenses,40159,Miscellaneous Expenses,5034,Primrose Gardens Promotional Video,19/06/2020,0147114,400.00,Revenue,Mr Richard Gill,80395,,
Chorley Borough Council,http://statistics.data.gov.uk/id/local-authority/30UE,Business Support,1095,Commercial Services,Security Service,40062,Services,5027,match against r,10/06/2020,0143573,680.00,Revenue,New Concept Security Ltd,77501,,
Chorley Borough Council,http://statistics.data.gov.uk/id/local-authority/30UE,Business Support,1095,Commercial Services,Security Service,40062,Services,5027,match against credit 25,10/06/2020,0144926,526.75,Revenue,New Concept Security Ltd,77501,,
Chorley Borough Council,http://statistics.data.gov.uk/id/local-authority/30UE,Business Support,1095,Commercial Services,Security Service,40062,Services,5027,match against credit 24,10/06/2020,0144927,526.75,Revenue,New Concept Security Ltd,77501,,
Chorley Borough Council,http://statistics.data.gov.uk/id/local-authority/30UE,Business Support,1095,Commercial Services,Security Service,40062,Services,5027,match against credit 20,10/06/2020,0144930,451.50,Revenue,New Concept Security Ltd,77501,,
Chorley Borough Council,http://statistics.data.gov.uk/id/local-authority/30UE,Business Support,1095,Commercial Services,Security Service,40062,Services,5027,match against credit 23,10/06/2020,0144933,526.75,Revenue,New Concept Security Ltd,77501,,
Chorley Borough Council,http://statistics.data.gov.uk/id/local-authority/30UE,Business Support,1095,Commercial Services,Security Service,40062,Services,5027,match against credit,10/06/2020,0146557,526.75,Revenue,New Concept Security Ltd,77501,,
Chorley Borough Council,http://statistics.data.gov.uk/id/local-authority/30UE,Business Support,1095,Commercial Services,Security Service,40062,Services,5027,To provide evening Site Security Services at Market Walk Shopping Centre from 5pm until midnight 7 days a week. ,10/06/2020,0146583,526.75,Revenue,New Concept Security Ltd,77501,,
Chorley Borough Council,http://statistics.data.gov.uk/id/local-authority/30UE,Business Support,1095,Commercial Services,Security Service,40062,Services,5027,To provide evening Site Security Services at Market Walk Shopping Centre from 5pm until midnight 7 days a week. ,10/06/2020,0146625,526.75,Revenue,New Concept Security Ltd,77501,,
Chorley Borough Council,http://statistics.data.gov.uk/id/local-authority/30UE,Business Support,1095,Commercial Services,Security Service,40062,Services,5027,cancelled out by credit 26,10/06/2020,0146736,290.25,Revenue,New Concept Security Ltd,77501,,
Chorley Borough Council,http://statistics.data.gov.uk/id/local-authority/30UE,Business Support,1095,Commercial Services,Security Service,40062,Services,5027,To provide evening Site Security Services at Market Walk Shopping Centre from 5pm until midnight 7 days a week. ,10/06/2020,0146737,526.75,Revenue,New Concept Security Ltd,77501,,
Chorley Borough Council,http://statistics.data.gov.uk/id/local-authority/30UE,Business Support,1095,Commercial Services,Security Service,40062,Services,5027,To provide evening Site Security Services at Market Walk Shopping Centre from 5pm until midnight 7 days a week. ,10/06/2020,0146757,526.75,Revenue,New Concept Security Ltd,77501,,
Chorley Borough Council,http://statistics.data.gov.uk/id/local-authority/30UE,Business Support,1095,Commercial Services,Security Service,40062,Services,5027,To provide evening Site Security Services at Market Walk Shopping Centre from 5pm until midnight 7 days a week. ,12/06/2020,0146762,290.25,Revenue,New Concept Security Ltd,77501,,
Chorley Borough Council,http://statistics.data.gov.uk/id/local-authority/30UE,Business Support,1095,Commercial Services,Security Service,40062,Services,5027,To provide evening Site Security Services at Market Walk Shopping Centre from 5pm until midnight 7 days a week. ,10/06/2020,0146854,526.75,Revenue,New Concept Security Ltd,77501,,
Chorley Borough Council,http://statistics.data.gov.uk/id/local-authority/30UE,Business Support,1095,Commercial Services,Security Service,40062,Services,5027,To provide evening Site Security Services at Market Walk Shopping Centre from 5pm until midnight 7 days a week. ,17/06/2020,0147082,526.75,Revenue,New Concept Security Ltd,77501,,
Chorley Borough Council,http://statistics.data.gov.uk/id/local-authority/30UE,Business Support,1095,Commercial Services,Security Service,40062,Services,5027,To provide evening Site Security Services at Market Walk Shopping Centre from 5pm until midnight 7 days a week. ,24/06/2020,0147146,526.75,Revenue,New Concept Security Ltd,77501,,
Chorley Borough Council,http://statistics.data.gov.uk/id/local-authority/30UE,Central Support Services,1009,Customer & Digital,Other Fees,40212,Miscellaneous Expenses,5034,"Legal Deeds Scanning - 280 boxes Prepare, scan and index",10/06/2020,0146501,"3,584.00",Revenue,Northgate Public Services (UK) Limited,18285,,
Chorley Borough Council,http://statistics.data.gov.uk/id/local-authority/30UE,Business Support,1095,Commercial Services,Electricity,20013,Energy Costs,5006,1/4/20 to 30/4/20,24/06/2020,0147204,280.50,Revenue,Npower Commercial Gas,16814,,
Chorley Borough Council,http://statistics.data.gov.uk/id/local-authority/30UE,Business Support,1095,Commercial Services,Electricity,20013,Energy Costs,5006,1/5/20 to 31/5/20,24/06/2020,0147205,270.58,Revenue,Npower Commercial Gas,16814,,
Chorley Borough Council,http://statistics.data.gov.uk/id/local-authority/30UE,Business Support,1095,Commercial Services,Electricity,20013,Energy Costs,5006,1/4/20 to 30/4/20,24/06/2020,0147206,"2,081.35",Revenue,Npower Commercial Gas,16814,,
Chorley Borough Council,http://statistics.data.gov.uk/id/local-authority/30UE,Business Support,1095,Commercial Services,Electricity,20013,Energy Costs,5006,1/5/20 to 31/5/20,24/06/2020,0147207,"2,092.41",Revenue,Npower Commercial Gas,16814,,
Chorley Borough Council,http://statistics.data.gov.uk/id/local-authority/30UE,Parking Services,1066,Commercial Services,External Contractors,50008,Private Contractors,5042,"off street car park enforcement, cash collection, cash counting and third party cash collections for 01.04.20 - 31.10.20",03/06/2020,0146869,"4,044.95",Revenue,NSL Limited,67253,,
Chorley Borough Council,http://statistics.data.gov.uk/id/local-authority/30UE,Service Management & Support,1009,Customer & Digital,Maintenance Street Furniture,20055,Grounds Maintenance Costs,5013,"Repaint 10 Heskin benches - Astley Park, Repaint Wishing Well - Ackhurst Lodge, Re-build 3 teak slat benches with metal ends",03/06/2020,0146799,"1,605.00",Revenue,Nuchoice Limited,75454,,
Chorley Borough Council,http://statistics.data.gov.uk/id/local-authority/30UE,Central Support Services,1009,Customer & Digital,IT Software - Annual Licences,40101,Communication and Computing,5028,Annual subscription 20 21  Software licence for Web Benefits calculator.,19/06/2020,0146999,775.00,Revenue,Otech Limited,17667,,
Chorley Borough Council,http://statistics.data.gov.uk/id/local-authority/30UE,Corporate Management,1008,Customer & Digital,Miscellaneous Expenses,40200,Miscellaneous Expenses,5034,2 x Hand sanitiser 5l case of 2 @68.17each,05/06/2020,0146500,136.34,Revenue,Pattersons Holdings (Bristol),77537,,
Chorley Borough Council,http://statistics.data.gov.uk/id/local-authority/30UE,Corporate Management,1008,Customer & Digital,Miscellaneous Expenses,40200,Miscellaneous Expenses,5034,disposable nitrile gloves blue @ 5.00 per box case of 10 @ 50.00 medium x 3 cases = 30 boxes X Large x 2 cases = 20 boxes,05/06/2020,0146500,250.00,Revenue,Pattersons Holdings (Bristol),77537,,
Chorley Borough Council,http://statistics.data.gov.uk/id/local-authority/30UE,Corporate Management,1008,Customer & Digital,Miscellaneous Expenses,40200,Miscellaneous Expenses,5034,4 x Protect disinfectant BA050-5 @ 7.30 each,05/06/2020,0146500,29.20,Revenue,Pattersons Holdings (Bristol),77537,,
Chorley Borough Council,http://statistics.data.gov.uk/id/local-authority/30UE,Corporate Management,1008,Customer & Digital,Miscellaneous Expenses,40200,Miscellaneous Expenses,5034,10 x Jangro all-purpose cloths pack of 50 (CG001-B) @ 1.71each,05/06/2020,0146500,17.10,Revenue,Pattersons Holdings (Bristol),77537,,
Chorley Borough Council,http://statistics.data.gov.uk/id/local-authority/30UE,Recreation & Sport,1037,Commercial Services,Cleaning Materials,40019,"Equipment, Furniture & Materia",5023,"Toilet Cleaner 	1.53 each 	20 x 1 litre	JH-00192	Total = 30.60",17/06/2020,0146882,30.60,Revenue,Pattersons Holdings (Bristol),77537,,
Chorley Borough Council,http://statistics.data.gov.uk/id/local-authority/30UE,Recreation & Sport,1037,Commercial Services,Cleaning Materials,40019,"Equipment, Furniture & Materia",5023,"Floor Disenfectant/Cleaner	3.02 each 	4 x 5 litre	JH-00277	Total = 12.08",17/06/2020,0146882,12.08,Revenue,Pattersons Holdings (Bristol),77537,,
Chorley Borough Council,http://statistics.data.gov.uk/id/local-authority/30UE,Recreation & Sport,1037,Commercial Services,Cleaning Materials,40019,"Equipment, Furniture & Materia",5023,"Colour Coded Dish cloths (BLUE)	1.16	Pack of 10 x 8 Packs	JH-00130/VAR Total = 9.28 Need Blue",17/06/2020,0146882,9.28,Revenue,Pattersons Holdings (Bristol),77537,,
Chorley Borough Council,http://statistics.data.gov.uk/id/local-authority/30UE,Recreation & Sport,1037,Commercial Services,Cleaning Materials,40019,"Equipment, Furniture & Materia",5023,"Ply Blue Cleaning Roll (Centrefeed)	7.37	4 x 6	CP-02411	Total = 29.48",17/06/2020,0146882,29.48,Revenue,Pattersons Holdings (Bristol),77537,,
Chorley Borough Council,http://statistics.data.gov.uk/id/local-authority/30UE,Recreation & Sport,1037,Commercial Services,Cleaning Materials,40019,"Equipment, Furniture & Materia",5023,"Jangro Kitchen Cleaner Sanitiser (Trigger Spray)	1.33	16 x 750ml	BB010-75	Total = 21.28",17/06/2020,0146882,21.28,Revenue,Pattersons Holdings (Bristol),77537,,
Chorley Borough Council,http://statistics.data.gov.uk/id/local-authority/30UE,Recreation & Sport,1037,Commercial Services,Cleaning Materials,40019,"Equipment, Furniture & Materia",5023,"Jangro,  Hand Soap unperfumed, 500ml	1.50	16 x 500ml	JH-00010	Total = 24",17/06/2020,0146882,19.50,Revenue,Pattersons Holdings (Bristol),77537,,
Chorley Borough Council,http://statistics.data.gov.uk/id/local-authority/30UE,Recreation & Sport,1037,Commercial Services,Cleaning Materials,40019,"Equipment, Furniture & Materia",5023,"Hard Surface Cleaner	2.86	4 x 5litre	JH-00228	Total = 11.44",17/06/2020,0146882,11.44,Revenue,Pattersons Holdings (Bristol),77537,,
Chorley Borough Council,http://statistics.data.gov.uk/id/local-authority/30UE,Recreation & Sport,1037,Commercial Services,Cleaning Materials,40019,"Equipment, Furniture & Materia",5023,"Toilet Rolls for dispenser 	6.78	1 x 12	JH- 00495	Total = 6.78",17/06/2020,0146882,6.78,Revenue,Pattersons Holdings (Bristol),77537,,
Chorley Borough Council,http://statistics.data.gov.uk/id/local-authority/30UE,Recreation & Sport,1037,Commercial Services,Cleaning Materials,40019,"Equipment, Furniture & Materia",5023,"Blue 1 Ply Z Fold Paper Hand Towels	8.10	4 x 3600	CPSF301	Total = 32.40",17/06/2020,0146882,32.40,Revenue,Pattersons Holdings (Bristol),77537,,
Chorley Borough Council,http://statistics.data.gov.uk/id/local-authority/30UE,Recreation & Sport,1037,Commercial Services,Cleaning Materials,40019,"Equipment, Furniture & Materia",5023,"Bin Liners	11.75	Pack of 200 x 4 Packs	IE-01013	Total = 47.00",17/06/2020,0146882,47.00,Revenue,Pattersons Holdings (Bristol),77537,,
Chorley Borough Council,http://statistics.data.gov.uk/id/local-authority/30UE,Recreation & Sport,1037,Commercial Services,Cleaning Materials,40019,"Equipment, Furniture & Materia",5023,"Jangro, Nitrile Disposable Glove, Powder Free, M/L, latex free, box of 100, 4 x 100 DG150/VA Large or Medium gloves please.",17/06/2020,0146882,3.84,Revenue,Pattersons Holdings (Bristol),77537,,
Chorley Borough Council,http://statistics.data.gov.uk/id/local-authority/30UE,Recreation & Sport,1037,Commercial Services,Cleaning Materials,40019,"Equipment, Furniture & Materia",5023,"Jangro, Deck scrub 9`` complete with handle	3.17 Each x 4 HB-00116 Total = 12.68",17/06/2020,0146882,12.68,Revenue,Pattersons Holdings (Bristol),77537,,
Chorley Borough Council,http://statistics.data.gov.uk/id/local-authority/30UE,Recreation & Sport,1037,Commercial Services,Cleaning Materials,40019,"Equipment, Furniture & Materia",5023,"Jangro, Green contract scouring pad 230mm x 150mm, pack of 10 1.06 Pack of 10 x 4 Packs JE6-7860 Total= 4.24",17/06/2020,0146882,4.24,Revenue,Pattersons Holdings (Bristol),77537,,
Chorley Borough Council,http://statistics.data.gov.uk/id/local-authority/30UE,Recreation & Sport,1037,Commercial Services,Cleaning Materials,40019,"Equipment, Furniture & Materia",5023,Jangro Blue Hygiene Hand Scrubbing Brush 15cm 4.49 each x 4 CY-00003,17/06/2020,0146882,17.96,Revenue,Pattersons Holdings (Bristol),77537,,
Chorley Borough Council,http://statistics.data.gov.uk/id/local-authority/30UE,Recreation & Sport,1037,Commercial Services,Cleaning Materials,40019,"Equipment, Furniture & Materia",5023,Scourer Sponge Pads (10) 1.44 each x 4 JE6-0006 Total = 5.76,17/06/2020,0146882,5.76,Revenue,Pattersons Holdings (Bristol),77537,,
Chorley Borough Council,http://statistics.data.gov.uk/id/local-authority/30UE,Recreation & Sport,1037,Commercial Services,Cleaning Materials,40019,"Equipment, Furniture & Materia",5023,"Jangro, Kentucky Mop head, twine,  16 oz (450g)  1.26 Each x 2  TB-00110	Total = 2.52",17/06/2020,0146882,2.52,Revenue,Pattersons Holdings (Bristol),77537,,
Chorley Borough Council,http://statistics.data.gov.uk/id/local-authority/30UE,Recreation & Sport,1037,Commercial Services,Cleaning Materials,40019,"Equipment, Furniture & Materia",5023,Exel PW Mop Head 200grm colour coded various colours  0.63 Each x 8 TB-00010/VAR Total =,17/06/2020,0146882,5.04,Revenue,Pattersons Holdings (Bristol),77537,,
Chorley Borough Council,http://statistics.data.gov.uk/id/local-authority/30UE,Recreation & Sport,1037,Commercial Services,Cleaning Materials,40019,"Equipment, Furniture & Materia",5023,Black Plastic Bucket 10ltr 1.35 Each x 4 LW-07086 Total = 5.40,17/06/2020,0146882,5.40,Revenue,Pattersons Holdings (Bristol),77537,,
Chorley Borough Council,http://statistics.data.gov.uk/id/local-authority/30UE,Recreation & Sport,1037,Commercial Services,Cleaning Materials,40019,"Equipment, Furniture & Materia",5023,"Jangro, Colour coded dust pan & brush set, soft, various colours 1.30 Each x 4 A8-19224/VAR Total = 5.20",17/06/2020,0146882,3.90,Revenue,Pattersons Holdings (Bristol),77537,,
Chorley Borough Council,http://statistics.data.gov.uk/id/local-authority/30UE,Recreation & Sport,1037,Commercial Services,Cleaning Materials,40019,"Equipment, Furniture & Materia",5023,"Jangro, Kentucky Mop head, twine,  16 oz (450g)  1.26  Each x 6  TB-00110 Total = 7.56",17/06/2020,0146882,7.56,Revenue,Pattersons Holdings (Bristol),77537,,
Chorley Borough Council,http://statistics.data.gov.uk/id/local-authority/30UE,Economic Development,1096,Commercial Services,Cleaning Materials,40019,"Equipment, Furniture & Materia",5023,Please supply cleaning materials as per email,17/06/2020,0147053,412.91,Revenue,Pattersons Holdings (Bristol),77537,,
Chorley Borough Council,http://statistics.data.gov.uk/id/local-authority/30UE,Central Support Services,1009,Commercial Services,Professional Fees,40063,Services,5027,Quantity surveying and project management services for Whittle GP Surgery; RIBA Stage 3 RIBA Stage 4; Compensation Event,03/06/2020,0146724,"4,200.00",Revenue,Perfect Circle JV Ltd,76438,,
Chorley Borough Council,http://statistics.data.gov.uk/id/local-authority/30UE,Central Support Services,1009,Commercial Services,Professional Fees,40063,Services,5027,Quantity surveying and project management services for Whittle GP Surgery; RIBA Stage 3 RIBA Stage 4; Compensation Event,05/06/2020,0146912,"3,250.00",Revenue,Perfect Circle JV Ltd,76438,,
Chorley Borough Council,http://statistics.data.gov.uk/id/local-authority/30UE,Service Management & Support,1009,Customer & Digital,Diesel/Derv,30007,Direct Transport Costs,5016,"Supply of 5600 litres of road diesel, Supply of 2850 litres of Gas oil, As procured via the chest",24/06/2020,0147234,"1,197.00",Revenue,Pilkington Oils,18075,,
Chorley Borough Council,http://statistics.data.gov.uk/id/local-authority/30UE,Service Management & Support,1009,Customer & Digital,Diesel/Derv,30007,Direct Transport Costs,5016,"Supply of 5600 litres of road diesel, Supply of 2850 litres of Gas oil, As procured via the chest",24/06/2020,0147241,"4,984.00",Revenue,Pilkington Oils,18075,,
Chorley Borough Council,http://statistics.data.gov.uk/id/local-authority/30UE,Development Control,1091,Customer & Digital,General Subscriptions,40146,Grants and Subscriptions,5031,Planning Jungle Membership 01/06/20 - 31/05/21,10/06/2020,0146900,300.00,Revenue,Planning Jungle Limited,59686,,
Chorley Borough Council,http://statistics.data.gov.uk/id/local-authority/30UE,Business Support,1095,Commercial Services,Miscellaneous Expenses,40200,Miscellaneous Expenses,5034,"As per quote REF: 13945/1 Re : Stay Apart various Signage Manufacture, Supply and Install - 5mm Correx UV Print on 1 side ",10/06/2020,0147007,936.21,Revenue,Poppy Signs Ltd,21898,,
Chorley Borough Council,http://statistics.data.gov.uk/id/local-authority/30UE,Other Short Term Creditors,,Policy & Governance,General Balances,00100,Balance Sheet,Balance,,19/06/2020,0147186,"4,386.50",Revenue,PRUDENTIAL,18178,,
Chorley Borough Council,http://statistics.data.gov.uk/id/local-authority/30UE,Central Support Services,1009,Policy & Governance,HR Approved Occ Health Fees,15201,Indirect Employee Expenses,5002,Counselling for Staff during April/May 2020,05/06/2020,0146904,360.00,Revenue,Rachel Dickinson,78411,,
Chorley Borough Council,http://statistics.data.gov.uk/id/local-authority/30UE,Private Sector HSG Renewal,1073,Early Intervention,Miscellaneous Expenses,40200,Miscellaneous Expenses,5034,contribution,19/06/2020,0147113,250.00,Revenue,Rhea Projects Ltd,77753,,
Chorley Borough Council,http://statistics.data.gov.uk/id/local-authority/30UE,Service Management & Support,1009,Customer & Digital,Supplies-Grounds Maintenance,40025,"Equipment, Furniture & Materia",5023,20 x Trustee amenity 5L @ 27.00 each,03/06/2020,0146738,540.00,Revenue,Rigby Taylor Ltd,16299,,
Chorley Borough Council,http://statistics.data.gov.uk/id/local-authority/30UE,Service Management & Support,1009,Customer & Digital,Supplies-Grounds Maintenance,40025,"Equipment, Furniture & Materia",5023,40 x Trustee Amenity 5L @ 27.00 each,26/06/2020,0147218,"1,080.00",Revenue,Rigby Taylor Ltd,16299,,
Chorley Borough Council,http://statistics.data.gov.uk/id/local-authority/30UE,Service Management & Support,1009,Customer & Digital,Supplies-Grounds Maintenance,40025,"Equipment, Furniture & Materia",5023,2 x R14 Grass Seed 20kg @ 76.00 each,26/06/2020,0147218,152.00,Revenue,Rigby Taylor Ltd,16299,,
Chorley Borough Council,http://statistics.data.gov.uk/id/local-authority/30UE,Tourism,1039,Policy & Governance,External Contractor,40198,Miscellaneous Expenses,5034,Preparation for Chorley Flower Show 2020 Annual Storage for Chorley Flower Show infrastructure,10/06/2020,0146977,"2,258.00",Revenue,RPM Events,70613,,
Chorley Borough Council,http://statistics.data.gov.uk/id/local-authority/30UE,Unapportionable Central OHeads,1009,Policy & Governance,HR Approved Occ Health Fees,15201,Indirect Employee Expenses,5002,Counselling sessions for Staff during April 2020,03/06/2020,0146706,320.00,Revenue,Sarah Walsh,78412,,
Chorley Borough Council,http://statistics.data.gov.uk/id/local-authority/30UE,Unapportionable Central OHeads,1009,Commercial Services,General Repairs - Reactive,20004,Repairs Maintenance & Alts,5005,Reactive Blanket,17/06/2020,0147094,"1,548.00",Revenue,Schindler Ltd,78215,,
Chorley Borough Council,http://statistics.data.gov.uk/id/local-authority/30UE,Democratic Represent and  Mgnt,1007,Commercial Services,Electricity,20013,Energy Costs,5006,22/2/20 to 22/5/20,19/06/2020,0147043,760.10,Revenue,Scottish Power,18998,,
Chorley Borough Council,http://statistics.data.gov.uk/id/local-authority/30UE,Business Support,1095,Commercial Services,Safety Signs And Posters,40017,"Equipment, Furniture & Materia",5023,"Social distancing signs, tape to mark out one way system etc for SF",05/06/2020,0146955,353.72,Revenue,Seton Ltd,16674,,
Chorley Borough Council,http://statistics.data.gov.uk/id/local-authority/30UE,Corporate Management,1008,Commercial Services,Miscellaneous Expenses,40200,Miscellaneous Expenses,5034,Arrows vinyl tape and use hand sanitiser signs - COVID-19 DOP,17/06/2020,0147150,512.91,Revenue,Seton Ltd,16674,,
Chorley Borough Council,http://statistics.data.gov.uk/id/local-authority/30UE,Service Management & Support,1009,Customer & Digital,Vehicles and Plant Operating Lease,30029,Contrct Hire & Operating Lease,5018,Lease rental July 20 to July 21 Ransome Highway PO16 HNL,10/06/2020,0147005,"4,179.96",Revenue,SG EQUIPMENT FINANCE LTD,18156,,
Chorley Borough Council,http://statistics.data.gov.uk/id/local-authority/30UE,Service Management & Support,1009,Customer & Digital,Vehicles and Plant Operating Lease,30029,Contrct Hire & Operating Lease,5018,Lease rental July 20 to July 21 Ransome Highway PO16 HNM,10/06/2020,0147005,"4,179.96",Revenue,SG EQUIPMENT FINANCE LTD,18156,,
Chorley Borough Council,http://statistics.data.gov.uk/id/local-authority/30UE,Service Management & Support,1009,Customer & Digital,Vehicles and Plant Operating Lease,30029,Contrct Hire & Operating Lease,5018,Lease rental July 20 to July 21 Ransome Highway PO16 HNK,10/06/2020,0147005,"4,179.95",Revenue,SG EQUIPMENT FINANCE LTD,18156,,
Chorley Borough Council,http://statistics.data.gov.uk/id/local-authority/30UE,Planning Policy,1092,Policy & Governance,Professional Fees,40063,Services,5027,"ADDRESS REDACTED Appeal: Revised draft SoCG,  Advising in conference, Reviewing proofs, telecon x2 Further advice x 2 ",17/06/2020,0146911,"5,100.00",Revenue,Simon Pickles,77744,,
Chorley Borough Council,http://statistics.data.gov.uk/id/local-authority/30UE,Planning Policy,1092,Policy & Governance,Professional Fees,40063,Services,5027,ADDRESS REDACTED Inquiry - Advising on rebuttals in telecons 04.06.20 and 05.06.20,17/06/2020,0147038,"1,500.00",Revenue,Simon Pickles,77744,,
Chorley Borough Council,http://statistics.data.gov.uk/id/local-authority/30UE,Service Management & Support,1009,Customer & Digital,Supplies-Grounds Maintenance,40025,"Equipment, Furniture & Materia",5023,2 x Tyre Guard 25L at 99.00 each,19/06/2020,0146982,198.00,Revenue,Spalding (UK) Limited,20264,,
Chorley Borough Council,http://statistics.data.gov.uk/id/local-authority/30UE,Service Management & Support,1009,Customer & Digital,Vehicles and Plant Maintenance,30045,Direct Transport Costs,5016,1 x Tubeless Tyre Repair Kit @ 85.00each,19/06/2020,0146982,85.00,Revenue,Spalding (UK) Limited,20264,,
Chorley Borough Council,http://statistics.data.gov.uk/id/local-authority/30UE,Service Management & Support,1009,Customer & Digital,Supplies-Grounds Maintenance,40025,"Equipment, Furniture & Materia",5023,5 x Stihl Autocut (25-2)  S1038 @ 22.50each,19/06/2020,0146982,112.50,Revenue,Spalding (UK) Limited,20264,,
Chorley Borough Council,http://statistics.data.gov.uk/id/local-authority/30UE,Business Support,1095,Commercial Services,Electricity,20013,Energy Costs,5006,27/3/19 to 26/4/19,03/06/2020,0138635,269.20,Revenue,SSE Swalec,76853,,
Chorley Borough Council,http://statistics.data.gov.uk/id/local-authority/30UE,Control Accounts,Control,Policy & Governance,General Balances,00100,Balance Sheet,Balance,monthly deductions,19/06/2020,0147226,447.02,Revenue,St Catherines Hospice Promotions,72375,,
Chorley Borough Council,http://statistics.data.gov.uk/id/local-authority/30UE,Democratic Represent and  Mgnt,1007,Policy & Governance,Exhibitions & Special Events,40158,Miscellaneous Expenses,5034,"Two double decker busses for Astley Illuminated park and ride on 23rd Nov 19. Union Street, to Astley Hall, from 4.30pm to 10pm",17/06/2020,0147042,440.00,Revenue,Stagecoach Services Limited,18598,,
Chorley Borough Council,http://statistics.data.gov.uk/id/local-authority/30UE,Capital,Capital,Commercial Services,Other Capital Related Fees,03024,Capital Expenditure,Capital,Provision of Public Realm & Highway Design  Engineering services  April 20 - March 21  Invoiced monthly on a days worked basis ,05/06/2020,0146961,"2,809.08",Capital,Street Civil Engineering Limited,76750,,
Chorley Borough Council,http://statistics.data.gov.uk/id/local-authority/30UE,Community Development,1097,Policy & Governance,Core Funding Grants,40133,Grants and Subscriptions,5031,Annual commission for the provision of Community Safety services in Chorley from 01 May 2020 to 31 March 2021.  ,03/06/2020,0146859,"3,334.00",Revenue,Street Pastors,21946,,
Chorley Borough Council,http://statistics.data.gov.uk/id/local-authority/30UE,Capital,Capital,Early Intervention,Grants,03002,Capital Expenditure,Capital,ADDRESS REDACTED,17/06/2020,0147041,680.00,Capital,Stringfellow Bldg Cntrctrs Ltd,17893,,
Chorley Borough Council,http://statistics.data.gov.uk/id/local-authority/30UE,Business Support,1095,Commercial Services,Refuse Collection,20037,Cleaning and Domestic Supplies,5012,"2020/21- To provide a bakkie cage for cardboard in Service Yard 3 @ Market Walk Shopping Centre, Chorley. ",24/06/2020,0147174,12.00,Revenue,SUEZ R&R UK LTD,17615,,
Chorley Borough Council,http://statistics.data.gov.uk/id/local-authority/30UE,Business Support,1095,Commercial Services,Refuse Collection,20037,Cleaning and Domestic Supplies,5012,2020/21 - Market Walk Yard 1 - 35 yard roll on/roll off cardboard skip @25 rental per month - no haulage or disposal costs ,24/06/2020,0147174,25.00,Revenue,SUEZ R&R UK LTD,17615,,
Chorley Borough Council,http://statistics.data.gov.uk/id/local-authority/30UE,Business Support,1095,Commercial Services,Refuse Collection,20037,Cleaning and Domestic Supplies,5012,2020/21 - Market Walk Yard 2 - 35 yard roll on/roll off cardboard skip @25 rental per month - no haulage or disposal costs ,24/06/2020,0147174,25.00,Revenue,SUEZ R&R UK LTD,17615,,
Chorley Borough Council,http://statistics.data.gov.uk/id/local-authority/30UE,Business Support,1095,Commercial Services,Refuse Collection,20037,Cleaning and Domestic Supplies,5012,2020/21 - Market Walk Yard 3 - 35 yard roll on/roll off cardboard skip @25 rental per month - no haulage or disposal costs ,24/06/2020,0147174,25.00,Revenue,SUEZ R&R UK LTD,17615,,
Chorley Borough Council,http://statistics.data.gov.uk/id/local-authority/30UE,Business Support,1095,Commercial Services,Refuse Collection,20037,Cleaning and Domestic Supplies,5012,2020/21 - Market Walk Yard 3 - 35 yard roll on/roll off plastic skip @25 rental per month - no haulage or disposal costs ,24/06/2020,0147174,25.00,Revenue,SUEZ R&R UK LTD,17615,,
Chorley Borough Council,http://statistics.data.gov.uk/id/local-authority/30UE,Business Support,1095,Commercial Services,Refuse Collection,20037,Cleaning and Domestic Supplies,5012,2020/21 - Market Walk Yard 3 - 2 x 8 yard FEL general waste @49.27 per lift (per FEL) - Total 5124.08,24/06/2020,0147174,213.83,Revenue,SUEZ R&R UK LTD,17615,,
Chorley Borough Council,http://statistics.data.gov.uk/id/local-authority/30UE,Business Support,1095,Commercial Services,Refuse Collection,20037,Cleaning and Domestic Supplies,5012,Any excess weight charges for Market Walk Skips and FEL`s 3000,24/06/2020,0147174,21.00,Revenue,SUEZ R&R UK LTD,17615,,
Chorley Borough Council,http://statistics.data.gov.uk/id/local-authority/30UE,Homelessness,1075,Early Intervention,Mobile Voice and Data,40086,Communication and Computing,5028,hotel accommodation for homeless person 55 per night 7 nights 385.00 per week 28/0-5/2020 - 04/06/2020,24/06/2020,0147170,385.00,Revenue,The Brunlea Hotel Ltd,80455,,
Chorley Borough Council,http://statistics.data.gov.uk/id/local-authority/30UE,Homelessness,1075,Early Intervention,Mobile Voice and Data,40086,Communication and Computing,5028,Room rate 55 per night hotel accommodation for homeless person 7 nights 385 per week 21/05/2020- 28/05/2020,24/06/2020,0147171,385.00,Revenue,The Brunlea Hotel Ltd,80455,,
Chorley Borough Council,http://statistics.data.gov.uk/id/local-authority/30UE,Homelessness,1075,Early Intervention,Mobile Voice and Data,40086,Communication and Computing,5028,homeless person hotel accommodation room rate 55.00 per night 7 nights 385.00 per week 04/06/2020 - 11/06/2020,24/06/2020,0147172,385.00,Revenue,The Brunlea Hotel Ltd,80455,,
Chorley Borough Council,http://statistics.data.gov.uk/id/local-authority/30UE,Business Support,1095,Commercial Services,Security Service,40062,Services,5027,Security service - DOP for May 2020,05/06/2020,0146910,"7,106.33",Revenue,The ExcluSec Group Ltd,78056,,
Chorley Borough Council,http://statistics.data.gov.uk/id/local-authority/30UE,Unapportionable Central OHeads,1009,Commercial Services,General Repairs - Reactive,20004,Repairs Maintenance & Alts,5005,Blanket reactive,10/06/2020,0146959,785.00,Revenue,The Guardian Shutter Co LTD,21769,,
Chorley Borough Council,http://statistics.data.gov.uk/id/local-authority/30UE,Corporate Management,1008,Policy & Governance,Miscellaneous Expenses,40200,Miscellaneous Expenses,5034,60 x A3 prints in colour laminated 51 x A4 prints in colour laminated 770 x A4 prints in colour laminated delivery to Union Street,05/06/2020,0146901,626.40,Revenue,The Print Quarter,17987,,
Chorley Borough Council,http://statistics.data.gov.uk/id/local-authority/30UE,Corporate Management,1008,Commercial Services,Miscellaneous Expenses,40200,Miscellaneous Expenses,5034,Total 900 - A4 prints in colour and laminated Queue Here - 4 kinds x 225 Available Weds/Thurs pm if ordered Mon,19/06/2020,0147167,575.00,Revenue,The Print Quarter,17987,,
Chorley Borough Council,http://statistics.data.gov.uk/id/local-authority/30UE,Elections,1012,Policy & Governance,Publications,40054,"Printing, Stationery & General",5026,schofields elections update R52,12/06/2020,0146956,132.50,Revenue,Thomson Reuters RE;Sweet & Maxwell Limited,17932,,
Chorley Borough Council,http://statistics.data.gov.uk/id/local-authority/30UE,Elections,1012,Policy & Governance,Publications,40054,"Printing, Stationery & General",5026,non vat,12/06/2020,0146956,132.50,Revenue,Thomson Reuters RE;Sweet & Maxwell Limited,17932,,
Chorley Borough Council,http://statistics.data.gov.uk/id/local-authority/30UE,Development Control,1091,Customer & Digital,Professional Fees,40063,Services,5027,Professional Services Provided: Eaves Green Phase 2 Viability Assessment,26/06/2020,0147001,"5,250.00",Revenue,Trebbi Continuum,77723,,
Chorley Borough Council,http://statistics.data.gov.uk/id/local-authority/30UE,Central Support Services,1009,Commercial Services,Professional Fees,40063,Services,5027,RIBA Stage 3 Architectural Services,24/06/2020,0147107,"13,200.00",Revenue,Triangle Architects Ltd,80413,,
Chorley Borough Council,http://statistics.data.gov.uk/id/local-authority/30UE,Corporate Management,1008,Customer & Digital,Miscellaneous Expenses,40200,Miscellaneous Expenses,5034,as per discussion with NAME REDACTED 200x Clarisan Purex Instant hand sanitising gel 62% alcohol 60ml @ 6.40 each,17/06/2020,0147095,"1,280.00",Revenue,Tudor (UK) Limited t/a Tudor Environmental,78888,,
Chorley Borough Council,http://statistics.data.gov.uk/id/local-authority/30UE,Unapportionable Central OHeads,1009,Customer & Digital,Service Fees,40056,Services,5027,Daily Hybrid Mail & Annual Billing,03/06/2020,0146531,767.77,Revenue,UKMAIL Ltd (Mail),57758,,
Chorley Borough Council,http://statistics.data.gov.uk/id/local-authority/30UE,Unapportionable Central OHeads,1009,Customer & Digital,Service Fees,40056,Services,5027,Daily Hybrid Mail & Annual Billing,03/06/2020,0146595,739.75,Revenue,UKMAIL Ltd (Mail),57758,,
Chorley Borough Council,http://statistics.data.gov.uk/id/local-authority/30UE,Unapportionable Central OHeads,1009,Customer & Digital,Service Fees,40056,Services,5027,Daily Hybrid Mail & Annual Billing,03/06/2020,0146729,622.56,Revenue,UKMAIL Ltd (Mail),57758,,
Chorley Borough Council,http://statistics.data.gov.uk/id/local-authority/30UE,Unapportionable Central OHeads,1009,Customer & Digital,Service Fees,40056,Services,5027,Daily Hybrid Mail & Annual Billing,19/06/2020,0146732,"1,038.74",Revenue,UKMAIL Ltd (Mail),57758,,
Chorley Borough Council,http://statistics.data.gov.uk/id/local-authority/30UE,Unapportionable Central OHeads,1009,Customer & Digital,Service Fees,40056,Services,5027,Daily Hybrid Mail & Annual Billing,03/06/2020,0146792,644.63,Revenue,UKMAIL Ltd (Mail),57758,,
Chorley Borough Council,http://statistics.data.gov.uk/id/local-authority/30UE,Unapportionable Central OHeads,1009,Customer & Digital,Service Fees,40056,Services,5027,Daily Hybrid Mail & Annual Billing,17/06/2020,0146917,659.12,Revenue,UKMAIL Ltd (Mail),57758,,
Chorley Borough Council,http://statistics.data.gov.uk/id/local-authority/30UE,Unapportionable Central OHeads,1009,Customer & Digital,Service Fees,40056,Services,5027,Daily Hybrid Mail & Annual Billing,19/06/2020,0147101,688.27,Revenue,UKMAIL Ltd (Mail),57758,,
Chorley Borough Council,http://statistics.data.gov.uk/id/local-authority/30UE,Control Accounts,Control,Policy & Governance,General Balances,00100,Balance Sheet,Balance,monthly deductions from payroll,19/06/2020,0147225,"1,903.81",Revenue,Unify Credit Union Ltd,55509,,
Chorley Borough Council,http://statistics.data.gov.uk/id/local-authority/30UE,Unapportionable Central OHeads,1009,Policy & Governance,Exhibitions & Special Events,40158,Miscellaneous Expenses,5034,Urban easy-on Anti-Graffiti Coating easy-on Clear Glaze 4.5ltr / 2.25ltr ,24/06/2020,0146880,306.64,Revenue,Urban Hygiene Limited,22032,,
Chorley Borough Council,http://statistics.data.gov.uk/id/local-authority/30UE,Central Support Services,1009,Commercial Services,Professional Fees,40063,Services,5027,Level 1 and 2 utility study for Tatton,10/06/2020,0146975,"2,400.00",Revenue,Utility Connections Management Ltd,77415,,
Chorley Borough Council,http://statistics.data.gov.uk/id/local-authority/30UE,Central Support Services,1009,Customer & Digital,"Hackney Badges, Plates Etc.",40023,"Equipment, Furniture & Materia",5023,"Flexiplate, Clear, Size 4F, Type A Adhesive  x3 packs of 50 @ 133.33 each",03/06/2020,0146846,410.79,Revenue,VIP-SYSTEM LIMITED,69902,,
Chorley Borough Council,http://statistics.data.gov.uk/id/local-authority/30UE,Central Support Services,1009,Customer & Digital,"Hackney Badges, Plates Etc.",40023,"Equipment, Furniture & Materia",5023,Chorley HCV Size 4F unique V5 (Taxi Plate) 1 pack of 50 @ 123.44,03/06/2020,0146846,126.77,Revenue,VIP-SYSTEM LIMITED,69902,,
Chorley Borough Council,http://statistics.data.gov.uk/id/local-authority/30UE,Central Support Services,1009,Customer & Digital,"Hackney Badges, Plates Etc.",40023,"Equipment, Furniture & Materia",5023,"Harpoon Security Button, Yellow x3 packs of 50 @ 14.45 each",03/06/2020,0146846,43.35,Revenue,VIP-SYSTEM LIMITED,69902,,
Chorley Borough Council,http://statistics.data.gov.uk/id/local-authority/30UE,Central Support Services,1009,Customer & Digital,"Hackney Badges, Plates Etc.",40023,"Equipment, Furniture & Materia",5023,"Quick Release Key Only, Clear x3 packs of 50 @ 57.69",03/06/2020,0146846,173.07,Revenue,VIP-SYSTEM LIMITED,69902,,
Chorley Borough Council,http://statistics.data.gov.uk/id/local-authority/30UE,Central Support Services,1009,Customer & Digital,"Hackney Badges, Plates Etc.",40023,"Equipment, Furniture & Materia",5023,Chorley HCV Size 2 x 1E Style 3_23_2 (Window Display) x1 pack of 50 @ 24.09 each,03/06/2020,0146846,24.74,Revenue,VIP-SYSTEM LIMITED,69902,,
Chorley Borough Council,http://statistics.data.gov.uk/id/local-authority/30UE,Central Support Services,1009,Customer & Digital,"Hackney Badges, Plates Etc.",40023,"Equipment, Furniture & Materia",5023,Chorley PHV Size 2 x 1E Style 3_23_2 (Window Display) x3 packs of 50 @ 24.09.each,03/06/2020,0146846,74.22,Revenue,VIP-SYSTEM LIMITED,69902,,
Chorley Borough Council,http://statistics.data.gov.uk/id/local-authority/30UE,Central Support Services,1009,Customer & Digital,Computer Equipment - Security,40106,Communication and Computing,5028,ict hardware,10/06/2020,0146740,"23,050.00",Revenue,Vohkus Limited,67630,,
Chorley Borough Council,http://statistics.data.gov.uk/id/local-authority/30UE,Central Support Services,1009,Commercial Services,Survey Expenses,40069,Services,5027,"Preparation of the Arboricultural Constraints & Opportunities report and the Tree Location and Constraints Plan, Tatton.",19/06/2020,0146633,"1,650.00",Revenue,Wardell Armstrong LLP,77818,,
Chorley Borough Council,http://statistics.data.gov.uk/id/local-authority/30UE,Economic Development,1096,Commercial Services,Water - Metered Supplies,20022,Water Services,5009,16/3/20 to2/6/20,17/06/2020,0147040,491.59,Revenue,Water-plus,17926,,
Chorley Borough Council,http://statistics.data.gov.uk/id/local-authority/30UE,Democratic Represent and  Mgnt,1007,Commercial Services,Water - Metered Supplies,20022,Water Services,5009,31/3/20 to 10/6/20,24/06/2020,0147254,976.80,Revenue,Water-plus,17926,,
